Workbook

Sheet PFP
A1: PROPOSTA FINANCEIRA DO PROJETO | J1: CODIGO:
J2: PFP
A3: NOME DA CONSULTORA:
A5: PROJETO: | F5: CONTRATANTE: | J5: BASE: Ago/2021
A6: Estudos e Projeto Básico do Canal do Sertão Baiano (CSB) | F6: CODEVASF (SEDE) | J6: PROP: Ago/2021 SINAPI/BA: Ago/2021 SICRO/NA: Jan/2021
A7: Base | B7: Cod2 | C7: Cod3 | D7: Categoria / Insumo | E7: Uni | F7: Qde | G7: CUD | H7: PU | I7: FatorK | J7: CT | K7: PT
A8: SICRO | B8: MO3 | C8: P0 | D8: Engenheiro coordenador (P8061) | E8: mês | F8: ='CRO1_Ins-Pro'!D5 -> 18 | G8: 16003.36 | H8: =ROUND(I8*G8,2) -> 23110.45 | I8: =PFP2.3_FatorKc!E36 -> 1.4441 | J8: =ROUND(F8*G8,2) -> 288060.48 | K8: =ROUND(F8*H8,2) -> 415988.1
A9: SICRO | B9: MO2 | C9: P1 | D9: Engenheiro sênior (P8067) | E9: mês | F9: ='CRO1_Ins-Pro'!D6 -> 66 | G9: 13560.49 | H9: 22989.1 | I9: =PFP2.2_FatorKb!$E$36 -> 1.6953 | J9: 894992.34 | K9: 1517280.6
A10: SICRO | B10: MO1 | C10: P2 | D10: Engenheiro pleno (P8066) | E10: mês | F10: ='CRO1_Ins-Pro'!D7 -> 222 | G10: 10307.29 | H10: =ROUND(I10*G10,2) -> 24047.94 | I10: =PFP2.1_FatorKa!$E$35 -> 2.3331 | J10: =ROUND(F10*G10,2) -> 2288218.38 | K10: 5338642.68
A11: SICRO | B11: MO1 | C11: P3 | D11: Engenheiro júnior (P8065) | E11: mês | F11: ='CRO1_Ins-Pro'!D8 -> 117 | G11: 9350 | H11: =ROUND(I11*G11,2) -> 21814.49 | I11: =PFP2.1_FatorKa!$E$35 -> 2.3331 | J11: =ROUND(F11*G11,2) -> 1093950 | K11: 2552295.33
A12: SICRO | B12: MO1 | C12: T1 | D12: Técnico de projetos/obra (P8147) | E12: mês | F12: ='CRO1_Ins-Pro'!D9 -> 142 | G12: 2894.21 | H12: 6752.48 | I12: =PFP2.1_FatorKa!$E$35 -> 2.3331 | J12: 410977.82 | K12: 958852.16
A13: SICRO | B13: MO1 | C13: D | D13: Desenhista (P9848) | E13: mês | F13: ='CRO1_Ins-Pro'!D10 -> 70 | G13: 2673.95 | H13: 6238.59 | I13: =PFP2.1_FatorKa!$E$35 -> 2.3331 | J13: 187176.5 | K13: 436701.3
A14: SICRO | B14: MO1 | C14: A1 | D14: Secretária (P8135) | E14: mês | F14: ='CRO1_Ins-Pro'!D11 -> 36 | G14: 2204.93 | H14: =ROUND(I14*G14,2) -> 5144.32 | I14: =PFP2.1_FatorKa!$E$35 -> 2.3331 | J14: =ROUND(F14*G14,2) -> 79377.48 | K14: =ROUND(F14*H14,2) -> 185195.52
A15: SICRO | B15: EC | C15: ECA | D15: Encargos Comp. e Adicionais | E15: mês | F15: ='CRO1_Ins-Pro'!D12 -> 671 | G15: 815.05 | H15: 1023.54 | I15: =PFP3_FatorKd!$E$17 -> 1.2558 | J15: =ROUND(F15*G15,2) -> 546898.55 | K15: =ROUND(F15*H15,2) -> 686795.34
A16: PROP | B16: EC | C16: AT2 | D16: Auxilio Transporte Técnicos | E16: mês | F16: ='CRO1_Ins-Pro'!D13 -> 142 | G16: =IF((22*5)-(G12*0.06*22/30)>0,(22*5)-(G12*0.06*22/30),0) -> 0 | H16: =ROUND(I16*G16,2) -> 0 | I16: =PFP3_FatorKd!$E$17 -> 1.2558 | J16: =ROUND(F16*G16,2) -> 0 | K16: =ROUND(F16*H16,2) -> 0
A17: PROP | B17: EC | C17: AT3 | D17: Auxilio Transporte Secretária | E17: mês | F17: ='CRO1_Ins-Pro'!D14 -> 36 | G17: =IF((22*5)-(G14*0.06*22/30)>0,(22*5)-(G14*0.06*22/30),0) -> 12.98308 | H17: 16.3 | I17: =PFP3_FatorKd!$E$17 -> 1.2558 | J17: 467.39 | K17: 586.8
A18: CODE | B18: LO | C18: V1 | D18: Diárias | E18: dia | F18: ='CRO1_Ins-Pro'!D15 -> 908 | G18: 239 | H18: 300.14 | I18: =PFP3_FatorKd!$E$17 -> 1.2558 | J18: 217012 | K18: 272527.12
A19: PROP | B19: LO | C19: V2 | D19: Pick-up Cab.dupla 2.8 4x4 Diesel | E19: dia | F19: ='CRO1_Ins-Pro'!D16 -> 225 | G19: 464.91 | H19: 583.83 | I19: =PFP3_FatorKd!$E$17 -> 1.2558 | J19: 104604.75 | K19: 131361.75
A20: PROP | B20: LO | C20: V3 | D20: Passagens Aéreas (ida e volta) | E20: un | F20: ='CRO1_Ins-Pro'!D17 -> 74 | G20: 2213 | H20: 2779.09 | I20: =PFP3_FatorKd!$E$17 -> 1.2558 | J20: 163762 | K20: 205652.66
A21: CODE | B21: EM | C21: M1 | D21: Relatório Parcial | E21: un | F21: ='CRO1_Ins-Pro'!D18 -> 93 | G21: 34.41245818 | H21: 43.22 | I21: =PFP3_FatorKd!$E$17 -> 1.2558 | J21: 3200.36 | K21: =ROUND(F21*H21,2) -> 4019.46
A22: CODE | B22: EM | C22: M2 | D22: Relatório Final | E22: un | F22: ='CRO1_Ins-Pro'!D19 -> 30 | G22: 1525.911339 | H22: 1916.24 | I22: =PFP3_FatorKd!$E$17 -> 1.2558 | J22: 45777.34 | K22: =ROUND(F22*H22,2) -> 57487.2
A23: CODE | B23: SU | C23: TOP | D23: Total Serviços Cartográficos | E23: un | F23: ='CRO1_Ins-Pro'!D20 -> 1 | G23: - | H23: =PFP1.1_Topo!G21 -> 1882138.36 | I23: - | J23: - | K23: =ROUND(F23*H23,2) -> 1882138.36
A24: CODE | B24: SU | C24: GEO | D24: Total Serviços Geotécnicos | E24: un | F24: ='CRO1_Ins-Pro'!D21 -> 1 | G24: - | H24: =PFP1.2_Geo!G47 -> 3648693.91 | I24: - | J24: - | K24: =ROUND(F24*H24,2) -> 3648693.91
A25: TOTAL DOS CUSTOS DIRETOS | H25: =SUM(J8:J24) -> 6324475.39
A26: TOTAL DOS ENCARGOS E DISPESAS DIVERSAS | H26: =H27-H25 -> 6438910.63
A27: TOTAL DA PROPOSTA A PREÇO GLOBAL | H27: =SUM(K8:K22) -> 12763386.02
A28: TOTAL DA PROPOSTA A PREÇO UNITÁRIO | H28: =SUM(K23:K24) -> 5530832.27
A29: TOTAL DA PROPOSTA | H29: =H27+H28 -> 18294218.29
A30: OBSERVAÇÃO:
A31: Alocar os Insumos MO, com respectivo FatorK, dentro da categoria de vínculo contratual (celetista, autonomo, societario)
A32: Uni - unidade de medição do insumo;
A33: Qde - Quantidade do Insumo (não pode ocorrer alteração pela Licitante)
A34: CUD - Custo Unitário Direto do Insumo (sem encargos, taxas e impostos, valor não pode ser maior que o Orçado pela Codevasf)
A35: CT - Custo Total (sem encargos, taxas e impostos) - CT = Qde x CUD
A36: FatorK - Taxa de Ressarcimento de Despesas e Encargos (detalhar composição nas Planilhas "PFP2.1", "PFP2.2", "PFP3")
A37: PU - Preço Unitário do Insumo (incluído encargos, taxas e impostos) - PU = CUD x FatorK
A38: PT - Preço Total do Insumo (incluído encargos, taxas e impostos) - PT = Qde x PU
A39: P - Profissionais nível superior nas áreas de Engenharia, Química, Arquitetura, Agronomia e Veterinária, conforme disposições da Lei 4.950-A/66
A40: S - Profissionais de nível superior nas demais áreas de atuação, incluindo Arqueólogo, Biólogo, Geógrafo e Sociólogo
A41: T - Profissionais de nível médio técnico nas diversas áreas de atuação
A42: A - Profissionais de nível médio de apoio técnico-administrativo

Sheet PFP1.1_Topo
A1: SERVIÇOS TOPOGRÁFICOS/CARTOGRÁFICOS | G1: CODIGO:
G2: PFP-1.1
A3: NOME DA EMPRESA:
A5: PROJETO: | E5: CONTRATANTE: | G5: =PFP!J5 -> BASE: Ago/2021
A6: =PFP!A6 -> Estudos e Projeto Básico do Canal do Sertão Baiano (CSB) | E6: CODEVASF (SEDE) | G6: CODE: Ago/2021
A7: Cod. | B7: Base | C7: Insumos | D7: Uni | E7: Qde | F7: Preço Unitário (PU) | G7: Preço Total (PT)
A8: TP08 | B8: CODE | C8: Nivelamento Geométrico dos Eixos classe IIN | D8: km | E8: 330 | F8: 682.91 | G8: =ROUND(F8*E8,2) -> 225360.3
A9: TP08A | B9: CODE | C9: Seções Tranversais | D9: km | E9: 1300 | F9: 409.74 | G9: 532662
A10: TP16.1 | B10: CODE | C10: Poligonal Classe IIP - locação dos eixos | D10: km | E10: 330 | F10: 1734.4 | G10: 572352
A11: TP19 | B11: CODE | C11: Pontos GPS de dupla frequencia (L1/L2) | D11: un | E11: 126 | F11: 841.98 | G11: 106089.48
A12: TP23 | B12: CODE | C12: Cadastro Físico (Faixa da ADA) | D12: ha | E12: 6800 | F12: 16.55 | G12: 112540
A13: TP24 | B13: CODE | C13: Cadastro Agrícola (Faixa ADA) | D13: ha | E13: 6800 | F13: 5.51 | G13: 37468
A14: TP25 | B14: CODE | C14: Cadastro Jurídico (Faixa ADA) | D14: ha | E14: 6800 | F14: 11.03 | G14: 75004
A15: TP26 | B15: CODE | C15: Cadastro Socioeconomico (Faixa Domínio) | D15: ha | E15: 6800 | F15: 3.68 | G15: 25024
A16: TP27 | B16: CODE | C16: Marco de Concreto (12x18x60cm) | D16: un | E16: 126 | F16: 42.58 | G16: 5365.08
A17: TP28 | B17: CODE | C17: Estaca Testemunhas(5x2x70cm) | D17: un | E17: 3000 | F17: 9.99 | G17: 29970
A18: TP29 | B18: CODE | C18: Piquetes de Madeira (2x2x20cm) | D18: un | E18: 20000 | F18: 2.54 | G18: 50800
A19: PD06 | B19: CODE | C19: Picada Manual p/ levantamento TP | D19: km | E19: 800 | F19: 125.35 | G19: 100280
A20: PD08 | B20: CODE | C20: Picada c/ Trator de Esteira | D20: km | E20: 10 | F20: 922.35 | G20: 9223.5
A21: TOTAL SERVIÇOS TOPOGRÁFICOS | G21: =SUM(G8:G20) -> 1882138.36
A22: OBSERVAÇÃO:
A23: Uni - unidade de medição do insumo;
A24: Qde - Quantidade do Insumo (não pode ocorrer alteração pela Licitante)
A25: PU - Preço Unitário (composições padrão da Codevasf, já incluso o FatorK)
A26: PT - Preço Total (incluído encargos, taxas e impostos) - PT = Qde x PU

Sheet PFP1.2_Geo
A1: SERVIÇOS GEOLÓGICOS/GEOTÉCNICOS | G1: CODIGO:
G2: PFP-1.2
A3: NOME DA EMPRESA:
A5: PROJETO: | E5: CONTRATANTE: | G5: =PFP!J5 -> BASE: Ago/2021
A6: =PFP!A6 -> Estudos e Projeto Básico do Canal do Sertão Baiano (CSB) | E6: CODEVASF (SEDE) | G6: =PFP1.1_Topo!G6 -> CODE: Ago/2021
A7: Cod. | B7: Base | C7: Insumos | D7: Uni | E7: Qde | F7: Preço Unitário (PU) | G7: Preço Total (PT)
A8: GT01 | B8: CODE | C8: Sondagem Rotativa: (Des)Mobilização | D8: un | E8: 6 | F8: 3663.51 | G8: =ROUND(F8*E8,2) -> 21981.06
A9: GT02 | B9: CODE | C9: Sondagem Rotativa: Ø N em rochas | D9: m | E9: 1980 | F9: 733.48 | G9: 1452290.4
A10: GT03 | B10: CODE | C10: Sondagem Rotativa: Ø B em solo | D10: m | E10: 30 | F10: 265.51 | G10: 7965.3
A11: GT04 | B11: CODE | C11: Sondagem Rotativa: Desloc/Instalação 0-200 m | D11: un | E11: 150 | F11: 975.37 | G11: 146305.5
A12: GT05 | B12: CODE | C12: Sondagem Rotativa: Desloc/Instalação 201-500 m | D12: un | E12: 16 | F12: 1409.96 | G12: 22559.36
A13: GT06 | B13: CODE | C13: Sondagem Rotativa: Desloc/Instalação >500 m | D13: un | E13: 150 | F13: 1844.56 | G13: 276684
A14: GT07 | B14: CODE | C14: Sondagem Percussão: (Des)Mobilização | D14: un | E14: 6 | F14: 964.98 | G14: 5789.88
A15: GT08 | B15: CODE | C15: Sondagem Percursão: com SPT | D15: m | E15: 474 | F15: 84.63 | G15: 40114.62
A16: GT09 | B16: CODE | C16: Sondagem Percursão: Desloc/Instalação 0-200 m | D16: un | E16: 150 | F16: 768.34 | G16: 115251
A17: GT10 | B17: CODE | C17: Sondagem Percursão: Desloc/Instalação 201-500 m | D17: un | E17: 16 | F17: 1108.19 | G17: 17731.04
A18: GT11 | B18: CODE | C18: Sondagem Percursão: Desloc/Instalação >500 m | D18: un | E18: 150 | F18: 1448.04 | G18: 217206
A19: GT12 | B19: CODE | C19: Sondagem Sismica de Refração | D19: km | E19: 30 | F19: 16218.68 | G19: 486560.4
A20: GT13 | B20: CODE | C20: Sondagem Trado 4'' | D20: m | E20: 300 | F20: 84.63 | G20: 25389
A21: GT14 | B21: CODE | C21: Poços de Inspeção | D21: m | E21: 1900 | F21: 204.43 | G21: 388417
A22: GT15 | B22: CODE | C22: Ensaio: Umidade Natural | D22: un | E22: 240 | F22: 71.85 | G22: 17244
A23: GT16 | B23: CODE | C23: Ensaio: Densidade Natural | D23: un | E23: 240 | F23: 71.85 | G23: 17244
A24: GT17 | B24: CODE | C24: Ensaio: Limite de Liquidez | D24: un | E24: 240 | F24: 98.37 | G24: 23608.8
A25: GT18 | B25: CODE | C25: Ensaio: Limite de Plasticidade | D25: un | E25: 240 | F25: 98.37 | G25: 23608.8
A26: GT19 | B26: CODE | C26: Ensaio: Granulometria por Peneiramento | D26: un | E26: 240 | F26: 114.51 | G26: 27482.4
A27: GT20 | B27: CODE | C27: Ensaio: Granulometria por Sedimentação | D27: un | E27: 240 | F27: 342.07 | G27: 82096.8
A28: GT21 | B28: CODE | C28: Ensaio: Compactação Proctor Normal | D28: un | E28: 240 | F28: 145.35 | G28: 34884
A29: GT22 | B29: CODE | C29: Ensaio: Massa Especifica Real dos Grãos | D29: un | E29: 240 | F29: 100.18 | G29: 24043.2
A30: GT23 | B30: CODE | C30: Ensaio: Adensamento Oedométrico | D30: un | E30: 15 | F30: 259.9 | G30: 3898.5
A31: GT24 | B31: CODE | C31: Ensaio: Triaxial UU ñ consolidado ñ drenado | D31: un | E31: 3 | F31: 747.78 | G31: 2243.34
A32: GT25 | B32: CODE | C32: Ensaio: Triaxial CU conslidado ñ drenado | D32: un | E32: 36 | F32: 1040.18 | G32: 37446.48
A33: GT26 | B33: CODE | C33: Ensaio: Expansão colapsividade em aneis | D33: un | E33: 85 | F33: 349.47 | G33: 29704.95
A34: GT27 | B34: CODE | C34: Ensaio: Expansão amostra indeformada com pressão de expansão | D34: un | E34: 40 | F34: 272.38 | G34: 10895.2
A35: GT28 | B35: CODE | C35: Ensaio: Dispersão Granulometria Comparativa | D35: un | E35: 85 | F35: 206.6 | G35: 17561
A36: GT29 | B36: CODE | C36: Ensaio: Dispersão Crumb Test | D36: un | E36: 90 | F36: 76.59 | G36: 6893.1
A37: GT30 | B37: CODE | C37: Ensaio: Infiltração | D37: un | E37: 30 | F37: 206.6 | G37: 6198
A38: GT31 | B38: CODE | C38: Ensaio: Perda de Água 5 estágios | D38: un | E38: 30 | F38: 326.18 | G38: 9785.4
A39: GT32 | B39: CODE | C39: Ensaio: Análise Quimica da Areia | D39: un | E39: 6 | F39: 415.13 | G39: 2490.78
A40: GT33 | B40: CODE | C40: Ensaio: Mineralogia da Areia | D40: un | E40: 22 | F40: 477.35 | G40: 10501.7
A41: GT34 | B41: CODE | C41: Ensaio: Análise Petrográfica/Mineralogia | D41: un | E41: 6 | F41: 477.35 | G41: 2864.1
A42: GT35 | B42: CODE | C42: Ensaio: Abrasão Los Angeles | D42: un | E42: 6 | F42: 373.57 | G42: 2241.42
A43: GT36 | B43: CODE | C43: Ensaio: Reatividade Potencial | D43: un | E43: 6 | F43: 1245 | G43: 7470
A44: GT37 | B44: CODE | C44: Ensaio: Permeabilidade Vertical de Carga Variável | D44: un | E44: 6 | F44: 587.63 | G44: 3525.78
A45: GT38 | B45: CODE | C45: Ensaio: Retirada de Amostra Indeformada | D45: un | E45: 30 | F45: 622.5 | G45: 18675
A46: GT39 | B46: CODE | C46: Ensaio: Permeabilidade "in situ" | D46: un | E46: 4 | F46: 460.65 | G46: =ROUND(F46*E46,2) -> 1842.6
A47: TOTAL SERVIÇOS GEOTÉCNICOS | G47: =SUM(G8:G46) -> 3648693.91
A48: LEGENDA:
A49: Uni - unidade de medição do insumo;
A50: Qde - Quantidade do Insumo (não pode ocorrer alteração pela Licitante)
A51: PU - Preço Unitário (composições padrão da Codevasf, já incluso o FatorK)
A52: PT - Preço Total (incluído encargos, taxas e impostos) - PT = Qde x PU

Sheet PFP2.1_FatorKa
A1: DETALHAMENTO DOS ENCARGOS SOCIAIS: Ka | F1: CODIGO:
F2: PFP-2.1
A3: NOME DA CONSULTORA:
A5: PROJETO: | C5: CONTRATANTE: | F5: =PFP!J5 -> BASE: Ago/2021
A6: =PFP!A6 -> Estudos e Projeto Básico do Canal do Sertão Baiano (CSB) | C6: CODEVASF (SEDE) | F6: SINAPI/BA: Ago/2021
A7: Cod | B7: DESCRIÇÃO | E7: % | F7: R$
A8: A | B8: ENCARGOS SOCIAIS BÁSICOS | E8: =ROUND(SUM(E9:E16),4) -> 0.368 | F8: =ROUND(E8*SUMIF(PFP!$B$8:$B$24,"MO1",PFP!$J$8:$J$24),2) -> 1493969.67
A9: A1 | B9: INSS | E9: 0.2 | F9: =ROUND(E9*SUMIF(PFP!$B$8:$B$24,"MO1",PFP!$J$8:$J$24),2) -> 811940.04
A10: A2 | B10: SESI | E10: 0.015 | F10: =ROUND(E10*SUMIF(PFP!$B$8:$B$24,"MO1",PFP!$J$8:$J$24),2) -> 60895.5
A11: A3 | B11: SENAI | E11: 0.01 | F11: =ROUND(E11*SUMIF(PFP!$B$8:$B$24,"MO1",PFP!$J$8:$J$24),2) -> 40597
A12: A4 | B12: INCRA | E12: 0.002 | F12: =ROUND(E12*SUMIF(PFP!$B$8:$B$24,"MO1",PFP!$J$8:$J$24),2) -> 8119.4
A13: A5 | B13: SEBRAE | E13: 0.006 | F13: =ROUND(E13*SUMIF(PFP!$B$8:$B$24,"MO1",PFP!$J$8:$J$24),2) -> 24358.2
A14: A6 | B14: Salário Educação | E14: 0.025 | F14: =ROUND(E14*SUMIF(PFP!$B$8:$B$24,"MO1",PFP!$J$8:$J$24),2) -> 101492.5
A15: A7 | B15: Seguro Contra Acidentes de Trabalho | E15: 0.03 | F15: =ROUND(E15*SUMIF(PFP!$B$8:$B$24,"MO1",PFP!$J$8:$J$24),2) -> 121791.01
A16: A8 | B16: FGTS | E16: 0.08 | F16: =ROUND(E16*SUMIF(PFP!$B$8:$B$24,"MO1",PFP!$J$8:$J$24),2) -> 324776.01
A17: B | B17: ENCARGOS SOCIAIS QUE RECEBEM INCIDÊNCIA DE "A" | E17: =ROUND(SUM(E18:E24),4) -> 0.1677 | F17: =ROUND(E17*SUMIF(PFP!$B$8:$B$24,"MO1",PFP!$J$8:$J$24),2) -> 680811.72
A18: B3 | B18: Auxílio Enfermidade | E18: 0.0067 | F18: =ROUND(E18*SUMIF(PFP!$B$8:$B$24,"MO1",PFP!$J$8:$J$24),2) -> 27199.99
A19: B4 | B19: 13º Salário | E19: 0.0833 | F19: =ROUND(E19*SUMIF(PFP!$B$8:$B$24,"MO1",PFP!$J$8:$J$24),2) -> 338173.02
A20: B5 | B20: Licença Paternidade | E20: 0.0006 | F20: =ROUND(E20*SUMIF(PFP!$B$8:$B$24,"MO1",PFP!$J$8:$J$24),2) -> 2435.82
A21: B6 | B21: Faltas Justificadas | E21: 0.0056 | F21: =ROUND(E21*SUMIF(PFP!$B$8:$B$24,"MO1",PFP!$J$8:$J$24),2) -> 22734.32
A22: B8 | B22: Auxílio Acidente de Trabalho | E22: 0.0008 | F22: =ROUND(E22*SUMIF(PFP!$B$8:$B$24,"MO1",PFP!$J$8:$J$24),2) -> 3247.76
A23: B9 | B23: Férias Gozadas | E23: 0.0704 | F23: =ROUND(E23*SUMIF(PFP!$B$8:$B$24,"MO1",PFP!$J$8:$J$24),2) -> 285802.89
A24: B10 | B24: Salário Maternidade | E24: 0.0003 | F24: =ROUND(E24*SUMIF(PFP!$B$8:$B$24,"MO1",PFP!$J$8:$J$24),2) -> 1217.91
A25: C | B25: ENCARGOS SOCIAIS QUE NÃO RECEBEM INCIDÊNCIA DE "A" | E25: =ROUND(SUM(E26:E30),4) -> 0.1068 | F25: =ROUND(E25*SUMIF(PFP!$B$8:$B$24,"MO1",PFP!$J$8:$J$24),2) -> 433575.98
A26: C1 | B26: Aviso Prévio Indenizado | E26: 0.0413 | F26: =ROUND(E26*SUMIF(PFP!$B$8:$B$24,"MO1",PFP!$J$8:$J$24),2) -> 167665.62
A27: C2 | B27: Aviso Prévio Trabalhado | E27: 0.001 | F27: =ROUND(E27*SUMIF(PFP!$B$8:$B$24,"MO1",PFP!$J$8:$J$24),2) -> 4059.7
A28: C3 | B28: Férias Indenizadas | E28: 0.0325 | F28: =ROUND(E28*SUMIF(PFP!$B$8:$B$24,"MO1",PFP!$J$8:$J$24),2) -> 131940.26
A29: C4 | B29: Depósito Rescisão Sem Justa Causa | E29: 0.0285 | F29: =ROUND(E29*SUMIF(PFP!$B$8:$B$24,"MO1",PFP!$J$8:$J$24),2) -> 115701.46
A30: C5 | B30: Indenização Adicional | E30: 0.0035 | F30: =ROUND(E30*SUMIF(PFP!$B$8:$B$24,"MO1",PFP!$J$8:$J$24),2) -> 14208.95
A31: D | B31: REINCIDÊNCIAS | E31: =ROUND(SUM(E32:E33),4) -> 0.0654 | F31: =ROUND(E31*SUMIF(PFP!$B$8:$B$24,"MO1",PFP!$J$8:$J$24),2) -> 265504.39
A32: D1 | B32: Reincidência de "A" sobre "B" | E32: =ROUND(E8*E17,4) -> 0.0617 | F32: =ROUND(E32*SUMIF(PFP!$B$8:$B$24,"MO1",PFP!$J$8:$J$24),2) -> 250483.5
A33: D2 | B33: Reincidência de "A" sobre Aviso Prévio Trabalhado e reincidência do FGTS sobre Aviso Prévio Indenizado | E33: =ROUND((E27*E8)+(E26*E16),4) -> 0.0037 | F33: =ROUND(E33*SUMIF(PFP!$B$8:$B$24,"MO1",PFP!$J$8:$J$24),2) -> 15020.89
A34: K1a | B34: ENCARGOS SOCIAIS | E34: =ROUND(E8+E17+E25+E31,4) -> 0.7079 | F34: =ROUND(E34*SUMIF(PFP!$B$8:$B$24,"MO1",PFP!$J$8:$J$24),2) -> 2873861.76
A35: Ka | B35: TAXA DE RESSARCIMENTO DE DESPESAS E ENCARGOS SOBRE MO1 | E35: =ROUND((1+E34+PFP3_FatorKd!E13)*(1+PFP3_FatorKd!E12)*(1+PFP3_FatorKd!E8),4) -> 2.3331
A36: OBSERVAÇÃO: CELETISTAS E EQUIVALENTES
A37: 1 - DISCRIMINAR OS ENCARGOS SOCIAIS COM SEUS RESPECTIVOS PERCENTUAS TOTALIZANDO OS MESMOS.
A38: 2 - APLICAR O % TOTAL P/ CALCULAR OS E. SOCIAIS INCIDENTES NA MÃO-DE-OBRA CELETISTAS
A39: Ka - Taxa de Ressarcimento de Despesas e Encargos sobre a Mão de Obra CELETISTA (incide apenas no Insumo Codigo MO1)
A40: Ka = (1 + K1 + K2) x (1 + K3) x (1 + K4)

Sheet PFP2.2_FatorKb
A1: DETALHAMENTO DOS ENCARGOS SOCIAIS: Kb | F1: CODIGO:
F2: PFP-2.2
A3: NOME DA CONSULTORA:
A5: PROJETO: | C5: CONTRATANTE: | F5: =PFP2.1_FatorKa!F5 -> BASE: Ago/2021
A6: =PFP!A6 -> Estudos e Projeto Básico do Canal do Sertão Baiano (CSB) | C6: CODEVASF (SEDE) | F6: =PFP2.1_FatorKa!F6 -> SINAPI/BA: Ago/2021
A7: Cod | B7: DESCRIÇÃO | E7: % | F7: R$
A8: A | B8: ENCARGOS SOCIAIS BÁSICOS | E8: =ROUND(SUM(E9:E17),4) -> 0.2 | F8: =ROUND(E8*SUMIF(PFP!$B$8:$B$24,"MO2",PFP!$J$8:$J$24),2) -> 178998.47
A9: A1 | B9: INSS | E9: 0.2 | F9: =ROUND(E9*SUMIF(PFP!$B$8:$B$24,"MO2",PFP!$J$8:$J$24),2) -> 178998.47
A10: A2 | B10: SESI | E10: 0 | F10: =ROUND(E10*SUMIF(PFP!$B$8:$B$24,"MO2",PFP!$J$8:$J$24),2) -> 0
A11: A3 | B11: SENAI | E11: 0 | F11: =ROUND(E11*SUMIF(PFP!$B$8:$B$24,"MO2",PFP!$J$8:$J$24),2) -> 0
A12: A4 | B12: INCRA | E12: 0 | F12: =ROUND(E12*SUMIF(PFP!$B$8:$B$24,"MO2",PFP!$J$8:$J$24),2) -> 0
A13: A5 | B13: SEBRAE | E13: 0 | F13: =ROUND(E13*SUMIF(PFP!$B$8:$B$24,"MO2",PFP!$J$8:$J$24),2) -> 0
A14: A6 | B14: Salário Educação | E14: 0 | F14: =ROUND(E14*SUMIF(PFP!$B$8:$B$24,"MO2",PFP!$J$8:$J$24),2) -> 0
A15: A7 | B15: Seguro Contra Acidentes de Trabalho | E15: 0 | F15: =ROUND(E15*SUMIF(PFP!$B$8:$B$24,"MO2",PFP!$J$8:$J$24),2) -> 0
A16: A8 | B16: FGTS | E16: 0 | F16: =ROUND(E16*SUMIF(PFP!$B$8:$B$24,"MO2",PFP!$J$8:$J$24),2) -> 0
A17: A9 | B17: SECONCI | E17: 0 | F17: =ROUND(E17*SUMIF(PFP!$B$8:$B$24,"MO2",PFP!$J$8:$J$24),2) -> 0
A18: B | B18: ENCARGOS SOCIAIS QUE RECEBEM INCIDÊNCIA DE "A" | E18: =ROUND(SUM(E19:E25),4) -> 0 | F18: =ROUND(E18*SUMIF(PFP!$B$8:$B$24,"MO2",PFP!$J$8:$J$24),2) -> 0
A19: B3 | B19: Auxílio Enfermidade | E19: 0 | F19: =ROUND(E19*SUMIF(PFP!$B$8:$B$24,"MO2",PFP!$J$8:$J$24),2) -> 0
A20: B4 | B20: 13º Salário | E20: 0 | F20: =ROUND(E20*SUMIF(PFP!$B$8:$B$24,"MO2",PFP!$J$8:$J$24),2) -> 0
A21: B5 | B21: Licença Paternidade | E21: 0 | F21: =ROUND(E21*SUMIF(PFP!$B$8:$B$24,"MO2",PFP!$J$8:$J$24),2) -> 0
A22: B6 | B22: Faltas Justificadas | E22: 0 | F22: =ROUND(E22*SUMIF(PFP!$B$8:$B$24,"MO2",PFP!$J$8:$J$24),2) -> 0
A23: B8 | B23: Auxílio Acidente de Trabalho | E23: 0 | F23: =ROUND(E23*SUMIF(PFP!$B$8:$B$24,"MO2",PFP!$J$8:$J$24),2) -> 0
A24: B9 | B24: Férias Gozadas | E24: 0 | F24: =ROUND(E24*SUMIF(PFP!$B$8:$B$24,"MO2",PFP!$J$8:$J$24),2) -> 0
A25: B10 | B25: Salário Maternidade | E25: 0 | F25: =ROUND(E25*SUMIF(PFP!$B$8:$B$24,"MO2",PFP!$J$8:$J$24),2) -> 0
A26: C | B26: ENCARGOS SOCIAIS QUE NÃO RECEBEM INCIDÊNCIA DE "A" | E26: =ROUND(SUM(E27:E31),4) -> 0 | F26: =ROUND(E26*SUMIF(PFP!$B$8:$B$24,"MO2",PFP!$J$8:$J$24),2) -> 0
A27: C1 | B27: Aviso Prévio Indenizado | E27: 0 | F27: =ROUND(E27*SUMIF(PFP!$B$8:$B$24,"MO2",PFP!$J$8:$J$24),2) -> 0
A28: C2 | B28: Aviso Prévio Trabalhado | E28: 0 | F28: =ROUND(E28*SUMIF(PFP!$B$8:$B$24,"MO2",PFP!$J$8:$J$24),2) -> 0
A29: C3 | B29: Férias Indenizadas | E29: 0 | F29: =ROUND(E29*SUMIF(PFP!$B$8:$B$24,"MO2",PFP!$J$8:$J$24),2) -> 0
A30: C4 | B30: Depósito Rescisão Sem Justa Causa | E30: 0 | F30: =ROUND(E30*SUMIF(PFP!$B$8:$B$24,"MO2",PFP!$J$8:$J$24),2) -> 0
A31: C5 | B31: Indenização Adicional | E31: 0 | F31: =ROUND(E31*SUMIF(PFP!$B$8:$B$24,"MO2",PFP!$J$8:$J$24),2) -> 0
A32: D | B32: REINCIDÊNCIAS | E32: =ROUND(SUM(E33:E34),4) -> 0 | F32: =ROUND(E32*SUMIF(PFP!$B$8:$B$24,"MO2",PFP!$J$8:$J$24),2) -> 0
A33: D1 | B33: Reincidência de "A" sobre "B" | E33: =ROUND(E8*E18,4) -> 0 | F33: =ROUND(E33*SUMIF(PFP!$B$8:$B$24,"MO2",PFP!$J$8:$J$24),2) -> 0
A34: D2 | B34: Reincidência de "A" sobre Aviso Prévio Trabalhado e reincidência do FGTS sobre Aviso Prévio Indenizado | E34: =ROUND(E8*E28,4)+ROUND(E27*E11,4) -> 0 | F34: =ROUND(E34*SUMIF(PFP!$B$8:$B$24,"MO2",PFP!$J$8:$J$24),2) -> 0
A35: K1b | B35: ENCARGOS SOCIAIS | E35: =ROUND(E8+E18+E26+E32,4) -> 0.2 | F35: =ROUND(E35*SUMIF(PFP!$B$8:$B$24,"MO2",PFP!$J$8:$J$24),2) -> 178998.47
A36: Kb | B36: TAXA DE RESSARCIMENTO DE DESPESAS E ENCARGOS SOBRE MO2 | E36: =ROUND((1+E35+PFP3_FatorKd!E13)*(1+PFP3_FatorKd!E12)*(1+PFP3_FatorKd!E8),4) -> 1.6953
A37: OBSERVAÇÃO: AUTÔNOMOS E EQUIVALENTES
A38: 1 - DISCRIMINAR OS ENCARGOS SOCIAIS COM SEUS RESPECTIVOS PERCENTUAS TOTALIZANDO OS MESMOS.
A39: 2 - APLICAR O % TOTAL P/ CALCULAR OS E. SOCIAIS INCIDENTES NA MÃO-DE-OBRA AUTONÔMOS
A40: Kb - Taxa de Ressarcimento de Despesas e Encargos sobre a Mão de Obra AUTONÔMA (incide apenas no Insumo Codigo MO2)
A41: Kb = (1 + K1 + K2) x (1 + K3) x (1 + K4)

Sheet PFP2.3_FatorKc
A1: DETALHAMENTO DOS ENCARGOS SOCIAIS: Kc | F1: CODIGO:
F2: PFP-2.3
A3: NOME DA CONSULTORA:
A5: PROJETO: | C5: CONTRATANTE: | F5: =PFP2.2_FatorKb!F5 -> BASE: Ago/2021
A6: =PFP!A6 -> Estudos e Projeto Básico do Canal do Sertão Baiano (CSB) | C6: CODEVASF (SEDE) | F6: =PFP2.2_FatorKb!F6 -> SINAPI/BA: Ago/2021
A7: Cod | B7: DESCRIÇÃO | E7: % | F7: R$
A8: A | B8: ENCARGOS SOCIAIS BÁSICOS | E8: =SUM(E9:E17) -> 0 | F8: =ROUND(E8*SUMIF(PFP!$B$8:$B$24,"MO3",PFP!$J$8:$J$24),2) -> 0
A9: A1 | B9: INSS | E9: 0 | F9: =ROUND(E9*SUMIF(PFP!$B$8:$B$24,"MO3",PFP!$J$8:$J$24),2) -> 0
A10: A2 | B10: SESI | E10: 0 | F10: =ROUND(E10*SUMIF(PFP!$B$8:$B$24,"MO3",PFP!$J$8:$J$24),2) -> 0
A11: A3 | B11: SENAI | E11: 0 | F11: =ROUND(E11*SUMIF(PFP!$B$8:$B$24,"MO3",PFP!$J$8:$J$24),2) -> 0
A12: A4 | B12: INCRA | E12: 0 | F12: =ROUND(E12*SUMIF(PFP!$B$8:$B$24,"MO3",PFP!$J$8:$J$24),2) -> 0
A13: A5 | B13: SEBRAE | E13: 0 | F13: =ROUND(E13*SUMIF(PFP!$B$8:$B$24,"MO3",PFP!$J$8:$J$24),2) -> 0
A14: A6 | B14: Salário Educação | E14: 0 | F14: =ROUND(E14*SUMIF(PFP!$B$8:$B$24,"MO3",PFP!$J$8:$J$24),2) -> 0
A15: A7 | B15: Seguro Contra Acidentes de Trabalho | E15: 0 | F15: =ROUND(E15*SUMIF(PFP!$B$8:$B$24,"MO3",PFP!$J$8:$J$24),2) -> 0
A16: A8 | B16: FGTS | E16: 0 | F16: =ROUND(E16*SUMIF(PFP!$B$8:$B$24,"MO3",PFP!$J$8:$J$24),2) -> 0
A17: A9 | B17: SECONCI | E17: 0 | F17: =ROUND(E17*SUMIF(PFP!$B$8:$B$24,"MO3",PFP!$J$8:$J$24),2) -> 0
A18: B | B18: ENCARGOS SOCIAIS QUE RECEBEM INCIDÊNCIA DE "A" | E18: =ROUND(SUM(E19:E25),4) -> 0 | F18: =ROUND(E18*SUMIF(PFP!$B$8:$B$24,"MO3",PFP!$J$8:$J$24),2) -> 0
A19: B3 | B19: Auxílio Enfermidade | E19: 0 | F19: =ROUND(E19*SUMIF(PFP!$B$8:$B$24,"MO3",PFP!$J$8:$J$24),2) -> 0
A20: B4 | B20: 13º Salário | E20: 0 | F20: =ROUND(E20*SUMIF(PFP!$B$8:$B$24,"MO3",PFP!$J$8:$J$24),2) -> 0
A21: B5 | B21: Licença Paternidade | E21: 0 | F21: =ROUND(E21*SUMIF(PFP!$B$8:$B$24,"MO3",PFP!$J$8:$J$24),2) -> 0
A22: B6 | B22: Faltas Justificadas | E22: 0 | F22: =ROUND(E22*SUMIF(PFP!$B$8:$B$24,"MO3",PFP!$J$8:$J$24),2) -> 0
A23: B8 | B23: Auxílio Acidente de Trabalho | E23: 0 | F23: =ROUND(E23*SUMIF(PFP!$B$8:$B$24,"MO3",PFP!$J$8:$J$24),2) -> 0
A24: B9 | B24: Férias Gozadas | E24: 0 | F24: =ROUND(E24*SUMIF(PFP!$B$8:$B$24,"MO3",PFP!$J$8:$J$24),2) -> 0
A25: B10 | B25: Salário Maternidade | E25: 0 | F25: =ROUND(E25*SUMIF(PFP!$B$8:$B$24,"MO3",PFP!$J$8:$J$24),2) -> 0
A26: C | B26: ENCARGOS SOCIAIS QUE NÃO RECEBEM INCIDÊNCIA DE "A" | E26: =ROUND(SUM(E27:E31),4) -> 0 | F26: =ROUND(E26*SUMIF(PFP!$B$8:$B$24,"MO3",PFP!$J$8:$J$24),2) -> 0
A27: C1 | B27: Aviso Prévio Indenizado | E27: 0 | F27: =ROUND(E27*SUMIF(PFP!$B$8:$B$24,"MO3",PFP!$J$8:$J$24),2) -> 0
A28: C2 | B28: Aviso Prévio Trabalhado | E28: 0 | F28: =ROUND(E28*SUMIF(PFP!$B$8:$B$24,"MO3",PFP!$J$8:$J$24),2) -> 0
A29: C3 | B29: Férias Indenizadas | E29: 0 | F29: =ROUND(E29*SUMIF(PFP!$B$8:$B$24,"MO3",PFP!$J$8:$J$24),2) -> 0
A30: C4 | B30: Depósito Rescisão Sem Justa Causa | E30: 0 | F30: =ROUND(E30*SUMIF(PFP!$B$8:$B$24,"MO3",PFP!$J$8:$J$24),2) -> 0
A31: C5 | B31: Indenização Adicional | E31: 0 | F31: =ROUND(E31*SUMIF(PFP!$B$8:$B$24,"MO3",PFP!$J$8:$J$24),2) -> 0
A32: D | B32: REINCIDÊNCIAS | E32: =ROUND(SUM(E33:E34),4) -> 0 | F32: =ROUND(E32*SUMIF(PFP!$B$8:$B$24,"MO3",PFP!$J$8:$J$24),2) -> 0
A33: D1 | B33: Reincidência de "A" sobre "B" | E33: =ROUND(E8*E18,4) -> 0 | F33: =ROUND(E33*SUMIF(PFP!$B$8:$B$24,"MO3",PFP!$J$8:$J$24),2) -> 0
A34: D2 | B34: Reincidência de "A" sobre Aviso Prévio Trabalhado e reincidência do FGTS sobre Aviso Prévio Indenizado | E34: =ROUND(E8*E28,4)+ROUND(E27*E11,4) -> 0 | F34: =ROUND(E34*SUMIF(PFP!$B$8:$B$24,"MO3",PFP!$J$8:$J$24),2) -> 0
A35: K1c | B35: ENCARGOS SOCIAIS | E35: =ROUND(E8+E18+E26+E32,4) -> 0 | F35: =ROUND(E35*SUMIF(PFP!$B$8:$B$24,"MO3",PFP!$J$8:$J$24),2) -> 0
A36: Kc | B36: TAXA DE RESSARCIMENTO DE DESPESAS E ENCARGOS SOBRE MO3 | E36: =ROUND((1+E35+PFP3_FatorKd!E13)*(1+PFP3_FatorKd!E12)*(1+PFP3_FatorKd!E8),4) -> 1.4441
A37: OBSERVAÇÃO: SOCIETÁRIOS E EQUIVALENTES
A38: 1 - DISCRIMINAR OS ENCARGOS SOCIAIS COM SEUS RESPECTIVOS PERCENTUAS TOTALIZANDO OS MESMOS.
A39: 2 - APLICAR O % TOTAL P/ CALCULAR OS E. SOCIAIS INCIDENTES NA MÃO-DE-OBRA DE SOCIETÁRIOS
A40: Kc - Taxa de Ressarcimento de Despesas e Encargos sobre a Mão de Obra SOCIETÁRIA (incide apenas no Insumo Codigo MO3)
A41: Kc = (1 + K1 + K2) x (1 + K3) x (1 + K4)

Sheet PFP3_FatorKd
A1: DESPESAS FISCAIS E CUSTOS DIVERSOS: Kc | F1: CODIGO:
F2: PFP-3
A3: NOME DA CONSULTORA:
A5: PROJETO: | C5: CONTRATANTE: | F5: =PFP2.3_FatorKc!F5 -> BASE: Ago/2021
A6: =PFP!A6 -> Estudos e Projeto Básico do Canal do Sertão Baiano (CSB) | C6: CODEVASF (SEDE) | F6: =PFP2.3_FatorKc!F6 -> SINAPI/BA: Ago/2021
A7: Cod | B7: DESCRIÇÃO1 | D7: % preço2 | E7: % custo4 | F7: R$
A8: K4 | B8: TRIBUTOS | D8: =ROUND(D9+D10+D11,4) -> 0.124 | E8: =ROUND(E9+E10+E11,4) -> 0.1416 | F8: =E8*SUM(SUMIF(PFP!$B$8:$B$24,"MO1",PFP!$J$8:$J$24)*(1+PFP2.1_FatorKa!$E$34)+SUMIF(PFP!$B$8:$B$24,"MO2",PFP!$J$8:$J$24)*(1+PFP2.2_FatorKb!$E$35)+SUMIF(PFP!$B$8:$B$24,"<>MO*",PFP!$J$8:$J$24)+$F$13+$F$12) -> 1538237.176
A9: K4.1 | B9: ISS | D9: 0.05 | E9: =ROUND((1/(1-$D$8))*D9,4) -> 0.0571 | F9: =E9*SUM(SUMIF(PFP!$B$8:$B$24,"MO1",PFP!$J$8:$J$24)*(1+PFP2.1_FatorKa!$E$34)+SUMIF(PFP!$B$8:$B$24,"MO2",PFP!$J$8:$J$24)*(1+PFP2.2_FatorKb!$E$35)+SUMIF(PFP!$B$8:$B$24,"<>MO*",PFP!$J$8:$J$24)+$F$13+$F$12) -> 620291.9686
A10: K4.2 | B10: PIS3 - aliquota efetiva aplicavel percentual-desconto | D10: =ROUND(1.65%*0.8,4) -> 0.0132 | E10: =ROUND((1/(1-$D$8))*D10,4) -> 0.0151 | F10: =E10*SUM(SUMIF(PFP!$B$8:$B$24,"MO1",PFP!$J$8:$J$24)*(1+PFP2.1_FatorKa!$E$34)+SUMIF(PFP!$B$8:$B$24,"MO2",PFP!$J$8:$J$24)*(1+PFP2.2_FatorKb!$E$35)+SUMIF(PFP!$B$8:$B$24,"<>MO*",PFP!$J$8:$J$24)+$F$13+$F$12) -> 164035.1791
A11: K4.3 | B11: COFINS3 - aliquota efetiva aplicavel percentual-desconto | D11: =ROUND(7.6%*0.8,4) -> 0.0608 | E11: =ROUND((1/(1-$D$8))*D11,4) -> 0.0694 | F11: =E11*SUM(SUMIF(PFP!$B$8:$B$24,"MO1",PFP!$J$8:$J$24)*(1+PFP2.1_FatorKa!$E$34)+SUMIF(PFP!$B$8:$B$24,"MO2",PFP!$J$8:$J$24)*(1+PFP2.2_FatorKb!$E$35)+SUMIF(PFP!$B$8:$B$24,"<>MO*",PFP!$J$8:$J$24)+$F$13+$F$12) -> 753910.0284
A12: K3 | B12: REMUNERAÇÃO DA EMPRESA (LUCRO) | E12: 0.1 | F12: =E12*SUM(SUMIF(PFP!$B$8:$B$24,"MO1",PFP!$J$8:$J$24)*(1+PFP2.1_FatorKa!$E$34)+SUMIF(PFP!$B$8:$B$24,"MO2",PFP!$J$8:$J$24)*(1+PFP2.2_FatorKb!$E$35)+SUMIF(PFP!$B$8:$B$24,"<>MO*",PFP!$J$8:$J$24)+$F$13) -> 987568.8085
A13: K2 | B13: CUSTOS DA ADMINISTRAÇÃO CENTRAL | E13: =ROUND(SUM(E14:E16),4) -> 0.15 | F13: =ROUND(E13*SUMIF(PFP!$B$8:$B$24,"MO*",PFP!$J$8:$J$24),2) -> 786412.95
A14: K2.1 | B14: Custos da administração central da empresa (diretoria, pessoal técnico de apoio e pessoal administrativo não diretamente vinculado à prestação dos serviços) | E14: 0.1 | F14: =ROUND(E14*SUMIF(PFP!$B$8:$B$24,"MO*",PFP!$J$8:$J$24),2) -> 524275.3
A15: K2.2 | B15: Outras despesas que afetam o custo de produção como treinamento, biblioteca, programa de qualidade, programa de benefícios, auditoria interna e externa | E15: 0.03 | F15: =ROUND(E15*SUMIF(PFP!$B$8:$B$24,"MO*",PFP!$J$8:$J$24),2) -> 157282.59
A16: K2.3 | B16: Despesas fixas e variaveis com patrimônio, aluguéis, comunicação, manutenção e transporte não diretamente relacionados com o custo direto dos serviços | E16: 0.02 | F16: =ROUND(E16*SUMIF(PFP!$B$8:$B$24,"MO*",PFP!$J$8:$J$24),2) -> 104855.06
A17: Kd | B17: TAXA RESSARCIMENTO DE DESPESAS SOBRE CUSTOS DIVERSOS | E17: =ROUND((1+E12)*(1+E8),4) -> 1.2558
A18: NOME DO INFORMANTE: | E18: QUALIFICAÇÃO:
A20: ASSINATURA: | E20: DATA:
A22: Observação:
A23: 1 - RELACIONAR OS CUSTOS DE ADMINISTRAÇÃO COM RESPECTIVOS PERCENTUAIS INCIDENTES NA MÃO -DE-OBRA
A24: 1 - DISCRIMINAR OS TRIBUTOS QUE INCIDEM SOBRE OS CUSTOS DA PRESTAÇÃO DOS SERVIÇOS
A25: 2 - K4 = INDICAR % DE CADA TRIBUTO E A SOMA DOS MESMOS (ex: ISS 5% + PIS 1,65% + COFINS 7,60% = 14,25%)
A26: 3 - PIS e COFINS, Regime de Incidencia Acumulativa (0,65% e 3,00% - sem percentual de desconto) ou em Regime de Incidencia Não Acumulativa (1,65% e 7,60% - aplicável percentual de desconto) de acordo com a forma de apuração do lucro no IRPJ. APRESENTAR COMPROVANTES de aproveitamento de créditos tributários dos últimos 12 meses em caso de aplicação de "percentual de desconto".
A27: 4 - AS DESPESAS FISCAIS (K4) INCIDEM SOBRE O TOTAL DA FATURA E NÃO SOBRE OS CUSTOS INCORRIDOS,
A28: DEVENDO SER CALCULADO O K4' APLICANDO-SE A SEGUINTE FÓRMULA:
A29: K4' = { [ 1 / ( 1 - K4) ] - 1 } x 100
A30: =CONCATENATE(" K4' = { [ 1 / ( 1 - ",D8," ) ] - 1 } x 100") -> K4' = { [ 1 / ( 1 - 0,124 ) ] - 1 } x 100
A31: Kc - Taxa de Ressarcimento de Despesas sobre Custos Diversos (incide sobre os Insumos Codigo DP e EM)
A32: Kc = (1 + K3) x (1 + K4)
A33: K2 - Incide sobre o Custo Total (CT) da Mão de Obra (MO* = MO1 + MO2)
A34: K3 - Incide sobre o Custo Total (CT) Mão de Obra com encargos (MO1 x Ka ou MO2 x Kb), demais Custos (DP e EM), e Custos da Administração Central (K2)
A35: K4 - Incide sobre o Custo Total (CT) Mão de Obra com encargos (MO1 x Ka ou MO2 x Kb), demais Custos (DP e EM), e Custos da Administração Central (K2) e Lucro (K3)

Sheet CRO1_Ins-Pro
A1: INSUMOS POR ETAPA/PRODUTO | N1: CODIGO:
N2: CRO-1
A3: Cod. | B3: Categoria / Insumo | C3: Uni | D3: Qde | E3: CUD | F3: PU | G3: FatorK | H3: E1. EV PIS | I3: E2. PB PIS | J3: E3. EB | K3: E4. T1.1 | L3: E5. T1.2 | M3: E6. T2 | N3: E7. T3 | O3: E8. T4 | P3: E9. T5
G4: Meses | H4: =COUNTA('CRO2_Ins-Mes'!F80:AO80)-COUNTIF('CRO2_Ins-Mes'!F80:AO80,0) -> 4 | I4: =COUNTA('CRO2_Ins-Mes'!F95:AO95)-COUNTIF('CRO2_Ins-Mes'!F95:AO95,0) -> 8 | J4: =COUNTA('CRO2_Ins-Mes'!F110:AO110)-COUNTIF('CRO2_Ins-Mes'!F110:AO110,0) -> 14 | K4: =COUNTA('CRO2_Ins-Mes'!F125:AO125)-COUNTIF('CRO2_Ins-Mes'!F125:AO125,0) -> 6 | L4: =COUNTA('CRO2_Ins-Mes'!F140:AO140)-COUNTIF('CRO2_Ins-Mes'!F140:AO140,0) -> 6 | M4: =COUNTA('CRO2_Ins-Mes'!F155:AO155)-COUNTIF('CRO2_Ins-Mes'!F155:AO155,0) -> 4 | N4: =COUNTA('CRO2_Ins-Mes'!F170:AO170)-COUNTIF('CRO2_Ins-Mes'!F170:AO170,0) -> 4 | O4: =COUNTA('CRO2_Ins-Mes'!F185:AO185)-COUNTIF('CRO2_Ins-Mes'!F185:AO185,0) -> 4 | P4: =COUNTA('CRO2_Ins-Mes'!F200:AO200)-COUNTIF('CRO2_Ins-Mes'!F200:AO200,0) -> 4
A5: =PFP!C8 -> P0 | B5: =PFP!D8 -> Engenheiro coordenador (P8061) | C5: mês | D5: =SUM(H5:P5) -> 18 | E5: =PFP!G8 -> 16003.36 | F5: =PFP!H8 -> 23110.45 | G5: =PFP!I8 -> 1.4441 | H5: ='CRO2_Ins-Mes'!E66 -> 1 | I5: ='CRO2_Ins-Mes'!E96 -> 4 | J5: ='CRO2_Ins-Mes'!E111 -> 2.25 | K5: ='CRO2_Ins-Mes'!E111 -> 2.25 | L5: ='CRO2_Ins-Mes'!E126 -> 2.25 | M5: ='CRO2_Ins-Mes'!E141 -> 1.5 | N5: ='CRO2_Ins-Mes'!E156 -> 1.5 | O5: ='CRO2_Ins-Mes'!E171 -> 1.5 | P5: ='CRO2_Ins-Mes'!E186 -> 1.75
A6: =PFP!C9 -> P1 | B6: =PFP!D9 -> Engenheiro sênior (P8067) | C6: mês | D6: 66 | E6: =PFP!G9 -> 13560.49 | F6: =PFP!H9 -> 22989.1 | G6: =PFP!I9 -> 1.6953 | H6: ='CRO2_Ins-Mes'!E67 -> 5.5 | I6: ='CRO2_Ins-Mes'!E97 -> 12 | J6: ='CRO2_Ins-Mes'!E112 -> 7.5 | K6: ='CRO2_Ins-Mes'!E112 -> 7.5 | L6: ='CRO2_Ins-Mes'!E127 -> 7.5 | M6: ='CRO2_Ins-Mes'!E142 -> 6.5 | N6: ='CRO2_Ins-Mes'!E157 -> 6.5 | O6: ='CRO2_Ins-Mes'!E172 -> 6.5 | P6: ='CRO2_Ins-Mes'!E187 -> 6.5
A7: =PFP!C10 -> P2 | B7: =PFP!D10 -> Engenheiro pleno (P8066) | C7: mês | D7: 222 | E7: =PFP!G10 -> 10307.29 | F7: =PFP!H10 -> 24047.94 | G7: =PFP!I10 -> 2.3331 | H7: ='CRO2_Ins-Mes'!E68 -> 22 | I7: ='CRO2_Ins-Mes'!E98 -> 12 | J7: ='CRO2_Ins-Mes'!E113 -> 30 | K7: ='CRO2_Ins-Mes'!E113 -> 30 | L7: ='CRO2_Ins-Mes'!E128 -> 30 | M7: ='CRO2_Ins-Mes'!E143 -> 24 | N7: ='CRO2_Ins-Mes'!E158 -> 24 | O7: ='CRO2_Ins-Mes'!E173 -> 24 | P7: ='CRO2_Ins-Mes'!E188 -> 26
A8: =PFP!C11 -> P3 | B8: =PFP!D11 -> Engenheiro júnior (P8065) | C8: mês | D8: 117 | E8: =PFP!G11 -> 9350 | F8: =PFP!H11 -> 21814.49 | G8: =PFP!I11 -> 2.3331 | H8: ='CRO2_Ins-Mes'!E69 -> 11 | I8: ='CRO2_Ins-Mes'!E99 -> 12 | J8: ='CRO2_Ins-Mes'!E114 -> 15 | K8: ='CRO2_Ins-Mes'!E114 -> 15 | L8: ='CRO2_Ins-Mes'!E129 -> 15 | M8: ='CRO2_Ins-Mes'!E144 -> 12 | N8: ='CRO2_Ins-Mes'!E159 -> 12 | O8: ='CRO2_Ins-Mes'!E174 -> 12 | P8: ='CRO2_Ins-Mes'!E189 -> 13
A9: =PFP!C12 -> T1 | B9: =PFP!D12 -> Técnico de projetos/obra (P8147) | C9: mês | D9: 142 | E9: =PFP!G12 -> 2894.21 | F9: =PFP!H12 -> 6752.48 | G9: =PFP!I12 -> 2.3331 | H9: ='CRO2_Ins-Mes'!E70 -> 11 | I9: ='CRO2_Ins-Mes'!E100 -> 37 | J9: ='CRO2_Ins-Mes'!E115 -> 15 | K9: ='CRO2_Ins-Mes'!E115 -> 15 | L9: ='CRO2_Ins-Mes'!E130 -> 15 | M9: ='CRO2_Ins-Mes'!E145 -> 12 | N9: ='CRO2_Ins-Mes'!E160 -> 12 | O9: ='CRO2_Ins-Mes'!E175 -> 12 | P9: ='CRO2_Ins-Mes'!E190 -> 13
A10: =PFP!C13 -> D | B10: =PFP!D13 -> Desenhista (P9848) | C10: mês | D10: 70 | E10: =PFP!G13 -> 2673.95 | F10: =PFP!H13 -> 6238.59 | G10: =PFP!I13 -> 2.3331 | H10: ='CRO2_Ins-Mes'!E71 -> 6 | I10: ='CRO2_Ins-Mes'!E101 -> 9 | J10: ='CRO2_Ins-Mes'!E116 -> 9 | K10: ='CRO2_Ins-Mes'!E116 -> 9 | L10: ='CRO2_Ins-Mes'!E131 -> 9 | M10: ='CRO2_Ins-Mes'!E146 -> 7 | N10: ='CRO2_Ins-Mes'!E161 -> 7 | O10: ='CRO2_Ins-Mes'!E176 -> 7 | P10: ='CRO2_Ins-Mes'!E191 -> 7
A11: =PFP!C14 -> A1 | B11: =PFP!D14 -> Secretária (P8135) | C11: mês | D11: 36 | E11: =PFP!G14 -> 2204.93 | F11: =PFP!H14 -> 5144.32 | G11: =PFP!I14 -> 2.3331 | H11: ='CRO2_Ins-Mes'!E72 -> 2 | I11: ='CRO2_Ins-Mes'!E102 -> 8 | J11: ='CRO2_Ins-Mes'!E117 -> 4.5 | K11: ='CRO2_Ins-Mes'!E117 -> 4.5 | L11: ='CRO2_Ins-Mes'!E132 -> 4.5 | M11: ='CRO2_Ins-Mes'!E147 -> 3 | N11: ='CRO2_Ins-Mes'!E162 -> 3 | O11: ='CRO2_Ins-Mes'!E177 -> 3 | P11: ='CRO2_Ins-Mes'!E192 -> 3.5
A12: =PFP!C15 -> ECA | B12: =PFP!D15 -> Encargos Comp. e Adicionais | C12: mês | D12: 671 | E12: =PFP!G15 -> 815.05 | F12: =PFP!H15 -> 1023.54 | G12: =PFP!I15 -> 1.2558 | H12: =SUM(H5:H11) -> 58.5 | I12: =SUM(I5:I11) -> 94 | J12: =SUM(J5:J11) -> 83.25 | K12: =SUM(K5:K11) -> 83.25 | L12: =SUM(L5:L11) -> 83.25 | M12: =SUM(M5:M11) -> 66 | N12: =SUM(N5:N11) -> 66 | O12: =SUM(O5:O11) -> 66 | P12: =SUM(P5:P11) -> 70.75
A13: =PFP!C16 -> AT2 | B13: =PFP!D16 -> Auxilio Transporte Técnicos | C13: mês | D13: 142 | E13: =PFP!G16 -> 0 | F13: =PFP!H16 -> 0 | G13: =PFP!I16 -> 1.2558 | H13: =H9 -> 11 | I13: =I9 -> 37 | J13: 15 | K13: 15 | L13: 15 | M13: 12 | N13: 12 | O13: 12 | P13: 13
A14: =PFP!C17 -> AT3 | B14: =PFP!D17 -> Auxilio Transporte Secretária | C14: mês | D14: 36 | E14: =PFP!G17 -> 12.98308 | F14: =PFP!H17 -> 16.3 | G14: =PFP!I17 -> 1.2558 | H14: =H11 -> 2 | I14: =I11 -> 8 | J14: 4.5 | K14: 4.5 | L14: 4.5 | M14: 3 | N14: 3 | O14: 3 | P14: 3.5
A15: =PFP!C18 -> V1 | B15: =PFP!D18 -> Diárias | C15: dia | D15: 908 | E15: =PFP!G18 -> 239 | F15: =PFP!H18 -> 300.14 | G15: =PFP!I18 -> 1.2558 | H15: ='CRO2_Ins-Mes'!E73 -> 102 | I15: ='CRO2_Ins-Mes'!E88 -> 54 | J15: ='CRO2_Ins-Mes'!E103 -> 364 | K15: ='CRO2_Ins-Mes'!E118 -> 84 | L15: ='CRO2_Ins-Mes'!E133 -> 84 | M15: ='CRO2_Ins-Mes'!E163 -> 64 | N15: ='CRO2_Ins-Mes'!E163 -> 64 | O15: ='CRO2_Ins-Mes'!E178 -> 28 | P15: ='CRO2_Ins-Mes'!E193 -> 64
A16: =PFP!C19 -> V2 | B16: =PFP!D19 -> Pick-up Cab.dupla 2.8 4x4 Diesel | C16: un | D16: 225 | E16: =PFP!G19 -> 464.91 | F16: =PFP!H19 -> 583.83 | G16: =PFP!I19 -> 1.2558 | H16: ='CRO2_Ins-Mes'!E74 -> 25 | I16: ='CRO2_Ins-Mes'!E89 -> 10 | J16: ='CRO2_Ins-Mes'!E104 -> 90 | K16: ='CRO2_Ins-Mes'!E119 -> 20 | L16: ='CRO2_Ins-Mes'!E134 -> 20 | M16: ='CRO2_Ins-Mes'!E164 -> 15 | N16: ='CRO2_Ins-Mes'!E164 -> 15 | O16: ='CRO2_Ins-Mes'!E179 -> 15 | P16: ='CRO2_Ins-Mes'!E194 -> 15
A17: =PFP!C20 -> V3 | B17: =PFP!D20 -> Passagens Aéreas (ida e volta) | C17: un | D17: 74 | E17: =PFP!G20 -> 2213 | F17: =PFP!H20 -> 2779.09 | G17: =PFP!I20 -> 1.2558 | H17: ='CRO2_Ins-Mes'!E75 -> 5 | I17: ='CRO2_Ins-Mes'!E90 -> 9 | J17: ='CRO2_Ins-Mes'!E105 -> 14 | K17: ='CRO2_Ins-Mes'!E120 -> 9 | L17: ='CRO2_Ins-Mes'!E135 -> 9 | M17: ='CRO2_Ins-Mes'!E165 -> 7 | N17: ='CRO2_Ins-Mes'!E165 -> 7 | O17: ='CRO2_Ins-Mes'!E180 -> 7 | P17: ='CRO2_Ins-Mes'!E195 -> 7
A18: =PFP!C21 -> M1 | B18: =PFP!D21 -> Relatório Parcial | C18: un | D18: 93 | E18: =PFP!G21 -> 34.41245818 | F18: =PFP!H21 -> 43.22 | G18: =PFP!I21 -> 1.2558 | H18: ='CRO2_Ins-Mes'!E76 -> 7 | I18: ='CRO2_Ins-Mes'!E91 -> 15 | J18: ='CRO2_Ins-Mes'!E106 -> 29 | K18: ='CRO2_Ins-Mes'!E121 -> 11 | L18: ='CRO2_Ins-Mes'!E136 -> 11 | M18: ='CRO2_Ins-Mes'!E166 -> 5 | N18: ='CRO2_Ins-Mes'!E166 -> 5 | O18: ='CRO2_Ins-Mes'!E181 -> 5 | P18: ='CRO2_Ins-Mes'!E196 -> 5
A19: =PFP!C22 -> M2 | B19: =PFP!D22 -> Relatório Final | C19: un | D19: 30 | E19: =PFP!G22 -> 1525.911339 | F19: =PFP!H22 -> 1916.24 | G19: =PFP!I22 -> 1.2558 | H19: ='CRO2_Ins-Mes'!E77 -> 3 | I19: ='CRO2_Ins-Mes'!E92 -> 3 | J19: ='CRO2_Ins-Mes'!E107 -> 6 | K19: ='CRO2_Ins-Mes'!E122 -> 3 | L19: ='CRO2_Ins-Mes'!E137 -> 3 | M19: ='CRO2_Ins-Mes'!E167 -> 3 | N19: ='CRO2_Ins-Mes'!E167 -> 3 | O19: ='CRO2_Ins-Mes'!E182 -> 3 | P19: ='CRO2_Ins-Mes'!E197 -> 3
A20: =PFP!C23 -> TOP | B20: =PFP!D23 -> Total Serviços Cartográficos | C20: un | D20: 1 | E20: =PFP!G23 -> - | F20: =PFP!H23 -> 1882138.36 | G20: =PFP!I23 -> - | H20: ='CRO2_Ins-Mes'!E78 -> 0 | I20: ='CRO2_Ins-Mes'!E93 -> 0 | J20: ='CRO2_Ins-Mes'!E108 -> 1 | K20: ='CRO2_Ins-Mes'!E123 -> 0 | L20: ='CRO2_Ins-Mes'!E138 -> 0 | M20: ='CRO2_Ins-Mes'!E168 -> 0 | N20: ='CRO2_Ins-Mes'!E168 -> 0 | O20: ='CRO2_Ins-Mes'!E183 -> 0 | P20: ='CRO2_Ins-Mes'!E198 -> 0
A21: =PFP!C24 -> GEO | B21: =PFP!D24 -> Total Serviços Geotécnicos | C21: un | D21: 1 | E21: =PFP!G24 -> - | F21: =PFP!H24 -> 3648693.91 | G21: =PFP!I24 -> - | H21: ='CRO2_Ins-Mes'!E79 -> 0 | I21: ='CRO2_Ins-Mes'!E94 -> 0 | J21: ='CRO2_Ins-Mes'!E109 -> 1 | K21: ='CRO2_Ins-Mes'!E124 -> 0 | L21: ='CRO2_Ins-Mes'!E139 -> 0 | M21: ='CRO2_Ins-Mes'!E169 -> 0 | N21: ='CRO2_Ins-Mes'!E169 -> 0 | O21: ='CRO2_Ins-Mes'!E184 -> 0 | P21: ='CRO2_Ins-Mes'!E199 -> 0
A22: TOTAL | B22: VALOR TOTAL POR PRODUTO | C22: R$ | D22: 18294218.29 | H22: =SUM(H5:H21*$F$5:$F$21) -> 1165628.46 | I22: =SUM(I5:I21*$F$5:$F$21) -> 1415601.64 | J22: =SUM(J5:J21*$F$5:$F$21) -> 7283225.327 | K22: =SUM(K5:K21*$F$5:$F$21) -> 1607063.628 | L22: =SUM(L5:L21*$F$5:$F$21) -> 1607063.628 | M22: =SUM(M5:M21*$F$5:$F$21) -> 1284139.515 | N22: =SUM(N5:N21*$F$5:$F$21) -> 1284139.515 | O22: =SUM(O5:O21*$F$5:$F$21) -> 1273334.475 | P22: =SUM(P5:P21*$F$5:$F$21) -> 1374022.103
C23: % | D23: 1.00001 | H23: =ROUND(H22/$D$22,5) -> 0.06372 | I23: =ROUND(I22/$D$22,5) -> 0.07738 | J23: 0.39812 | K23: 0.08785 | L23: 0.08785 | M23: 0.07019 | N23: 0.07019 | O23: 0.0696 | P23: 0.07511
A24: TOTAL | B24: VALOR DOS SUBPRODUTOS | C24: R$ | D24: 14635374.63 | H24: =H22*0.8 -> 932502.768 | I24: =I22*0.8 -> 1132481.312 | J24: 5826580.262 | K24: 1285650.902 | L24: 1285650.902 | M24: 1027311.612 | N24: 1027311.612 | O24: 1018667.58 | P24: 1099217.682
B25: VALOR DO PRODUTO CONSOLIDADO | C25: R$ | D25: 3658843.658 | H25: =H22*0.2 -> 233125.692 | I25: =I22*0.2 -> 283120.328 | J25: 1456645.066 | K25: 321412.7255 | L25: 321412.7255 | M25: 256827.903 | N25: 256827.903 | O25: 254666.895 | P25: 274804.4205

Sheet CRO2_Ins-Mes
A1: CRONOGRAMA SIMPLIFICADO
A3: Cod1 | B3: Cod2 | C3: Produtos | D3: Uni | E3: Qde | F3: 1 | G3: 2 | H3: 3 | I3: 4 | J3: 5 | K3: 6 | L3: 7 | M3: 8 | N3: 9 | O3: 10 | P3: 11 | Q3: 12 | R3: 13 | S3: 14 | T3: 15 | U3: 16 | V3: 17 | W3: 18 | X3: 19 | Y3: 20 | Z3: 21 | AA3: 22 | AB3: 23 | AC3: 24 | AD3: 25 | AE3: 26 | AF3: 27 | AG3: 28 | AH3: 29 | AI3: 30 | AJ3: 31 | AK3: 32 | AL3: 33 | AM3: 34 | AN3: 35 | AO3: 36
A4: 1 | B4: 1.1 | C4: Análise e Avaliação das Áreas Irrigáveis do PIS | D4: mês | E4: =SUM(F4:AO4) -> 3 | F4: 1 | G4: 1 | H4: 1
A5: 1 | B5: 1.2 | C5: Determinação da Vazão Necessária em Cada Mancha de Solo Irrigável do PIS | D5: mês | E5: 2 | G5: 1 | H5: 1
A6: 1 | B6: 1.3 | C6: Determinação da Vazão Necessária nas Estruturas do PIS | D6: mês | E6: 3 | G6: 1 | H6: 1 | I6: 1
A7: 1 | B7: 1.4 | C7: Disponibilidade hídrica para o CSB | D7: mês | E7: 2 | G7: 1 | H7: 1
A8: 1 | B8: 1.5 | C8: Determinação da Vazão Necessária nas Estruturas do PIS para Atendimento Conjunto com o CSB | D8: mês | E8: 2 | H8: 1 | I8: 1
A9: 1 | B9: 1 | C9: Atualização EV PIS RC.500 a RC800 | D9: mês | E9: 4 | F9: =SUBTOTAL(4,F4:F8) -> 1 | G9: 1 | H9: 1 | I9: 1 | J9: 0 | K9: 0 | L9: 0 | M9: 0 | N9: 0 | O9: 0 | P9: 0 | Q9: 0 | R9: 0 | S9: 0 | T9: 0 | U9: 0 | V9: 0 | W9: 0 | X9: 0 | Y9: 0 | Z9: 0 | AA9: 0 | AB9: 0 | AC9: 0 | AD9: 0 | AE9: 0 | AF9: 0 | AG9: 0 | AH9: 0 | AI9: 0 | AJ9: 0 | AK9: 0 | AL9: 0 | AM9: 0 | AN9: 0 | AO9: 0
A10: 2 | B10: 2.1 | C10: Projeto Geométrico e Hidráulico | D10: mês | E10: 3 | J10: 1 | K10: 1 | L10: 1
A11: 2 | B11: 2.2 | C11: Projeto Civil e Terraplanagem | D11: mês | E11: 1 | J11: 1
A12: 2 | B12: 2.3 | C12: Projeto Eletromecânico e Automação | D12: mês | E12: 1 | J12: 1
A13: 2 | B13: 2.4 | C13: Peças Complementares | D13: mês | E13: 7 | K13: 1 | L13: 1 | M13: 1 | N13: 1 | O13: 1 | P13: 1 | Q13: 1
A14: 2 | B14: 2 | C14: PB PIS RC.500 a RC800 | D14: mês | E14: 8 | F14: =SUBTOTAL(4,F10:F13) -> 0 | G14: =SUBTOTAL(4,G10:G13) -> 0 | H14: =SUBTOTAL(4,H10:H13) -> 0 | I14: =SUBTOTAL(4,I10:I13) -> 0 | J14: =SUBTOTAL(4,J10:J13) -> 1 | K14: =SUBTOTAL(4,K10:K13) -> 1 | L14: =SUBTOTAL(4,L10:L13) -> 1 | M14: =SUBTOTAL(4,M10:M13) -> 1 | N14: =SUBTOTAL(4,N10:N13) -> 1 | O14: =SUBTOTAL(4,O10:O13) -> 1 | P14: =SUBTOTAL(4,P10:P13) -> 1 | Q14: =SUBTOTAL(4,Q10:Q13) -> 1 | R14: =SUBTOTAL(4,R10:R13) -> 0 | S14: =SUBTOTAL(4,S10:S13) -> 0 | T14: =SUBTOTAL(4,T10:T13) -> 0 | U14: =SUBTOTAL(4,U10:U13) -> 0 | V14: =SUBTOTAL(4,V10:V13) -> 0 | W14: =SUBTOTAL(4,W10:W13) -> 0 | X14: =SUBTOTAL(4,X10:X13) -> 0 | Y14: =SUBTOTAL(4,Y10:Y13) -> 0 | Z14: =SUBTOTAL(4,Z10:Z13) -> 0 | AA14: =SUBTOTAL(4,AA10:AA13) -> 0 | AB14: =SUBTOTAL(4,AB10:AB13) -> 0 | AC14: =SUBTOTAL(4,AC10:AC13) -> 0 | AD14: =SUBTOTAL(4,AD10:AD13) -> 0 | AE14: =SUBTOTAL(4,AE10:AE13) -> 0 | AF14: =SUBTOTAL(4,AF10:AF13) -> 0 | AG14: =SUBTOTAL(4,AG10:AG13) -> 0 | AH14: =SUBTOTAL(4,AH10:AH13) -> 0 | AI14: =SUBTOTAL(4,AI10:AI13) -> 0 | AJ14: =SUBTOTAL(4,AJ10:AJ13) -> 0 | AK14: =SUBTOTAL(4,AK10:AK13) -> 0 | AL14: =SUBTOTAL(4,AL10:AL13) -> 0 | AM14: =SUBTOTAL(4,AM10:AM13) -> 0 | AN14: =SUBTOTAL(4,AN10:AN13) -> 0 | AO14: =SUBTOTAL(4,AO10:AO13) -> 0
A15: 3 | B15: 3.1 | C15: Estudos Topográficos | D15: mês | E15: 5 | K15: 1 | L15: 1 | M15: 1 | N15: 1 | O15: 1
A16: 3 | B16: 3.2 | C16: Estudo Geológico/Geotécnico | D16: mês | E16: 5 | L16: 1 | M16: 1 | N16: 1 | O16: 1 | P16: 1
A17: 3 | B17: 3.3 | C17: Estudo Hidrológico | D17: mês | E17: 2 | M17: 1 | N17: 1
A18: 3 | B18: 3.4 | C18: Estudos de Transientes Hidráulicos | D18: mês | E18: 2 | O18: 1 | P18: 1
A19: 3 | B19: 3.5 | C19: Estudo de Inserção Regional | D19: mês | E19: =SUM(F19:AO19) -> 4 | F19: 1 | G19: 1 | H19: 1 | I19: 1
A20: 3 | B20: 3.6 | C20: Modelo de Gestão | D20: mês | E20: 4 | Q20: 1 | R20: 1 | S20: 1 | T20: 1
A21: 3 | B21: 3 | C21: Estudos Básicos | D21: mês | E21: 14 | F21: =SUBTOTAL(4,F15:F20) -> 1 | G21: =SUBTOTAL(4,G15:G20) -> 1 | H21: 1 | I21: 1 | J21: 0 | K21: 1 | L21: 1 | M21: 1 | N21: 1 | O21: 1 | P21: 1 | Q21: 1 | R21: 1 | S21: 1 | T21: 1 | U21: 0 | V21: 0 | W21: 0 | X21: 0 | Y21: 0 | Z21: 0 | AA21: 0 | AB21: 0 | AC21: 0 | AD21: 0 | AE21: 0 | AF21: 0 | AG21: 0 | AH21: 0 | AI21: 0 | AJ21: 0 | AK21: 0 | AL21: 0 | AM21: 0 | AN21: 0 | AO21: 0
A22: 4 | B22: 4.1 | C22: Projeto Geométrico e Hidráulico | D22: mês | E22: 3 | T22: 1 | U22: 1 | V22: 1
A23: 4 | B23: 4.2 | C23: Projeto Civil e Terraplanagem | D23: mês | E23: 5 | U23: 1 | V23: 1 | W23: 1 | X23: 1 | Y23: 1
A24: 4 | B24: 4.3 | C24: Projeto Eletromecânico e Automação | D24: mês | E24: 3 | U24: 1 | V24: 1 | W24: 1
A25: 4 | B25: 4.4 | C25: Projeto Viário e Drenagem | D25: mês | E25: 2 | U25: 1 | V25: 1
A26: 4 | B26: 4.5 | C26: Projeto de Desapropriação | D26: mês | E26: 2 | U26: 1 | V26: 1
A27: 4 | B27: 4.6 | C27: Peças Complementares | D27: mês | E27: 2 | X27: 1 | Y27: 1
A28: 4 | B28: 4 | C28: CSB Trecho 1.1 | D28: mês | E28: 6 | F28: =SUBTOTAL(4,F22:F27) -> 0 | G28: 0 | H28: 0 | I28: 0 | J28: 0 | K28: 0 | L28: 0 | M28: 0 | N28: 0 | O28: 0 | P28: 0 | Q28: 0 | R28: 0 | S28: 0 | T28: 1 | U28: 1 | V28: 1 | W28: 1 | X28: 1 | Y28: 1 | Z28: 0 | AA28: 0 | AB28: 0 | AC28: 0 | AD28: 0 | AE28: 0 | AF28: 0 | AG28: 0 | AH28: 0 | AI28: 0 | AJ28: 0 | AK28: 0 | AL28: 0 | AM28: 0 | AN28: 0 | AO28: 0
A29: 5 | B29: 5.1 | C29: Projeto Geométrico e Hidráulico | D29: mês | E29: 3 | X29: 1 | Y29: 1 | Z29: 1
A30: 5 | B30: 5.2 | C30: Projeto Civil e Terraplanagem | D30: mês | E30: 5 | Y30: 1 | Z30: 1 | AA30: 1 | AB30: 1 | AC30: 1
A31: 5 | B31: 5.3 | C31: Projeto Eletromecânico e Automação | D31: mês | E31: 3 | Y31: 1 | Z31: 1 | AA31: 1
A32: 5 | B32: 5.4 | C32: Projeto Viário e Drenagem | D32: mês | E32: 2 | Y32: 1 | Z32: 1
A33: 5 | B33: 5.5 | C33: Projeto de Desapropriação | D33: mês | E33: 2 | Y33: 1 | Z33: 1
A34: 5 | B34: 5.6 | C34: Plano de Execução da Obra | D34: mês | E34: 2 | AB34: 1 | AC34: 1
A35: 5 | B35: 5 | C35: CSB Trecho 1.2 | D35: mês | E35: 6 | F35: =SUBTOTAL(4,F29:F34) -> 0 | G35: 0 | H35: 0 | I35: 0 | J35: 0 | K35: 0 | L35: 0 | M35: 0 | N35: 0 | O35: 0 | P35: 0 | Q35: 0 | R35: 0 | S35: 0 | T35: 0 | U35: 0 | V35: 0 | W35: 0 | X35: 1 | Y35: 1 | Z35: 1 | AA35: 1 | AB35: 1 | AC35: 1 | AD35: 0 | AE35: 0 | AF35: 0 | AG35: 0 | AH35: 0 | AI35: 0 | AJ35: 0 | AK35: 0 | AL35: 0 | AM35: 0 | AN35: 0 | AO35: 0
A36: 6 | B36: 6.1 | C36: Projeto Geométrico e Hidráulico | D36: mês | E36: 2 | AC36: 1 | AD36: 1
A37: 6 | B37: 6.2 | C37: Projeto Civil e Terraplanagem | D37: mês | E37: 3 | AD37: 1 | AE37: 1 | AF37: 1
A38: 6 | B38: 6.3 | C38: Projeto Eletromecânico e Automação | D38: mês | E38: 2 | AD38: 1 | AE38: 1
A39: 6 | B39: 6.4 | C39: Projeto Viário e Drenagem | D39: mês | E39: 2 | AD39: 1 | AE39: 1
A40: 6 | B40: 6.5 | C40: Projeto de Desapropriação | D40: mês | E40: 2 | AD40: 1 | AE40: 1
A41: 6 | B41: 6.6 | C41: Plano de Execução da Obra | D41: mês | E41: 2 | AE41: 1 | AF41: 1
A42: 6 | B42: 6 | C42: CSB Trecho 2 | D42: mês | E42: 4 | F42: =SUBTOTAL(4,F36:F41) -> 0 | G42: 0 | H42: 0 | I42: 0 | J42: 0 | K42: 0 | L42: 0 | M42: 0 | N42: 0 | O42: 0 | P42: 0 | Q42: 0 | R42: 0 | S42: 0 | T42: 0 | U42: 0 | V42: 0 | W42: 0 | X42: 0 | Y42: 0 | Z42: 0 | AA42: 0 | AB42: 0 | AC42: 1 | AD42: 1 | AE42: 1 | AF42: 1 | AG42: 0 | AH42: 0 | AI42: 0 | AJ42: 0 | AK42: 0 | AL42: 0 | AM42: 0 | AN42: 0 | AO42: 0
A43: 7 | B43: 7.1 | C43: Projeto Geométrico e Hidráulico | D43: mês | E43: 2 | AF43: 1 | AG43: 1
A44: 7 | B44: 7.2 | C44: Projeto Civil e Terraplanagem | D44: mês | E44: 3 | AG44: 1 | AH44: 1 | AI44: 1
A45: 7 | B45: 7.3 | C45: Projeto Eletromecânico e Automação | D45: mês | E45: 2 | AG45: 1 | AH45: 1
A46: 7 | B46: 7.4 | C46: Projeto Viário e Drenagem | D46: mês | E46: 2 | AG46: 1 | AH46: 1
A47: 7 | B47: 7.5 | C47: Projeto de Desapropriação | D47: mês | E47: 2 | AG47: 1 | AH47: 1
A48: 7 | B48: 7.6 | C48: Plano de Execução da Obra | D48: mês | E48: 2 | AH48: 1 | AI48: 1
A49: 7 | B49: 7 | C49: CSB Trecho 3 | D49: mês | E49: 4 | F49: =SUBTOTAL(4,F43:F48) -> 0 | G49: 0 | H49: 0 | I49: 0 | J49: 0 | K49: 0 | L49: 0 | M49: 0 | N49: 0 | O49: 0 | P49: 0 | Q49: 0 | R49: 0 | S49: 0 | T49: 0 | U49: 0 | V49: 0 | W49: 0 | X49: 0 | Y49: 0 | Z49: 0 | AA49: 0 | AB49: 0 | AC49: 0 | AD49: 0 | AE49: 0 | AF49: 1 | AG49: 1 | AH49: 1 | AI49: 1 | AJ49: 0 | AK49: 0 | AL49: 0 | AM49: 0 | AN49: 0 | AO49: 0
A50: 8 | B50: 8.1 | C50: Projeto Geométrico e Hidráulico | D50: mês | E50: 2 | AI50: 1 | AJ50: 1
A51: 8 | B51: 8.2 | C51: Projeto Civil e Terraplanagem | D51: mês | E51: 3 | AJ51: 1 | AK51: 1 | AL51: 1
A52: 8 | B52: 8.3 | C52: Projeto Eletromecânico e Automação | D52: mês | E52: 2 | AJ52: 1 | AK52: 1
A53: 8 | B53: 8.4 | C53: Projeto Viário e Drenagem | D53: mês | E53: 2 | AJ53: 1 | AK53: 1
A54: 8 | B54: 8.5 | C54: Projeto de Desapropriação | D54: mês | E54: 2 | AJ54: 1 | AK54: 1
A55: 8 | B55: 8.6 | C55: Plano de Execução da Obra | D55: mês | E55: 2 | AK55: 1 | AL55: 1
A56: 8 | B56: 8 | C56: CSB Trecho 4 | D56: mês | E56: 4 | F56: =SUBTOTAL(4,F50:F55) -> 0 | G56: 0 | H56: 0 | I56: 0 | J56: 0 | K56: 0 | L56: 0 | M56: 0 | N56: 0 | O56: 0 | P56: 0 | Q56: 0 | R56: 0 | S56: 0 | T56: 0 | U56: 0 | V56: 0 | W56: 0 | X56: 0 | Y56: 0 | Z56: 0 | AA56: 0 | AB56: 0 | AC56: 0 | AD56: 0 | AE56: 0 | AF56: 0 | AG56: 0 | AH56: 0 | AI56: 1 | AJ56: 1 | AK56: 1 | AL56: 1 | AM56: 0 | AN56: 0 | AO56: 0
A57: 9 | B57: 9.1 | C57: Projeto Geométrico e Hidráulico | D57: mês | E57: 2 | AL57: 1 | AM57: 1
A58: 9 | B58: 9.2 | C58: Projeto Civil e Terraplanagem | D58: mês | E58: =SUM(F58:AO58) -> 3 | AM58: 1 | AN58: 1 | AO58: 1
A59: 9 | B59: 9.3 | C59: Projeto Eletromecânico e Automação | D59: mês | E59: 2 | AM59: 1 | AN59: 1
A60: 9 | B60: 9.4 | C60: Projeto Viário e Drenagem | D60: mês | E60: 2 | AM60: 1 | AN60: 1
A61: 9 | B61: 9.5 | C61: Projeto de Desapropriação | D61: mês | E61: 2 | AM61: 1 | AN61: 1
A62: 9 | B62: 9.6 | C62: Plano de Execução da Obra | D62: mês | E62: 2 | AN62: 1 | AO62: 1
A63: 9 | B63: 9 | C63: CSB Trecho 5 | D63: mês | E63: 4 | F63: =SUBTOTAL(4,F57:F62) -> 0 | G63: 0 | H63: 0 | I63: 0 | J63: 0 | K63: 0 | L63: 0 | M63: 0 | N63: 0 | O63: 0 | P63: 0 | Q63: 0 | R63: 0 | S63: 0 | T63: 0 | U63: 0 | V63: 0 | W63: 0 | X63: 0 | Y63: 0 | Z63: 0 | AA63: 0 | AB63: 0 | AC63: 0 | AD63: 0 | AE63: 0 | AF63: 0 | AG63: 0 | AH63: 0 | AI63: 0 | AJ63: 0 | AK63: 0 | AL63: 1 | AM63: 1 | AN63: 1 | AO63: 1
A64: Total | B64: Total | C64: Balanço Temporal | D64: mês | E64: 36 | F64: =SUBTOTAL(4,F4:F62) -> 1 | G64: 1 | H64: 1 | I64: 1 | J64: 1 | K64: 1 | L64: 1 | M64: 1 | N64: 1 | O64: 1 | P64: 1 | Q64: 1 | R64: 1 | S64: 1 | T64: 1 | U64: 1 | V64: 1 | W64: 1 | X64: 1 | Y64: 1 | Z64: 1 | AA64: 1 | AB64: 1 | AC64: 1 | AD64: 1 | AE64: 1 | AF64: 1 | AG64: 1 | AH64: 1 | AI64: 1 | AJ64: 1 | AK64: 1 | AL64: 1 | AM64: 1 | AN64: 1 | AO64: 1
A65: Cod1 | B65: Cod2 | C65: Insumos | D65: Uni | E65: Qde | F65: 1 | G65: 2 | H65: 3 | I65: 4 | J65: 5 | K65: 6 | L65: 7 | M65: 8 | N65: 9 | O65: 10 | P65: 11 | Q65: 12 | R65: 13 | S65: 14 | T65: 15 | U65: 16 | V65: 17 | W65: 18 | X65: 19 | Y65: 20 | Z65: 21 | AA65: 22 | AB65: 23 | AC65: 24 | AD65: 25 | AE65: 26 | AF65: 27 | AG65: 28 | AH65: 29 | AI65: 30 | AJ65: 31 | AK65: 32 | AL65: 33 | AM65: 34 | AN65: 35 | AO65: 36
A66: 1 | B66: =PFP!C8 -> P0 | C66: =PFP!D8 -> Engenheiro coordenador (P8061) | D66: =PFP!E8 -> mês | E66: =SUM(F66:AO66) -> 1 | F66: 0.25 | G66: 0.25 | H66: 0.25 | I66: 0.25
A67: 1 | B67: =PFP!C9 -> P1 | C67: =PFP!D9 -> Engenheiro sênior (P8067) | D67: =PFP!E9 -> mês | E67: 5.5 | F67: 0.5 | G67: 2 | H67: 2.5 | I67: 0.5
A68: 1 | B68: =PFP!C10 -> P2 | C68: =PFP!D10 -> Engenheiro pleno (P8066) | D68: =PFP!E10 -> mês | E68: 22 | F68: 2 | G68: 8 | H68: 10 | I68: 2
A69: 1 | B69: =PFP!C11 -> P3 | C69: =PFP!D11 -> Engenheiro júnior (P8065) | D69: =PFP!E11 -> mês | E69: 11 | F69: 1 | G69: 4 | H69: 5 | I69: 1
A70: 1 | B70: =PFP!C12 -> T1 | C70: =PFP!D12 -> Técnico de projetos/obra (P8147) | D70: =PFP!E12 -> mês | E70: 11 | F70: 1 | G70: 4 | H70: 5 | I70: 1
A71: 1 | B71: =PFP!C13 -> D | C71: =PFP!D13 -> Desenhista (P9848) | D71: =PFP!E13 -> mês | E71: 6 | G71: 2 | H71: 2 | I71: 2
A72: 1 | B72: A1 | C72: =PFP!D14 -> Secretária (P8135) | D72: mês | E72: 2 | F72: 0.5 | G72: 0.5 | H72: 0.5 | I72: 0.5
A73: 1 | B73: =PFP!C18 -> V1 | C73: =PFP!D18 -> Diárias | D73: =PFP!E18 -> dia | E73: 102 | F73: 20 | G73: 40 | H73: 40 | I73: 2
A74: 1 | B74: =PFP!C19 -> V2 | C74: =PFP!D19 -> Pick-up Cab.dupla 2.8 4x4 Diesel | D74: =PFP!E19 -> dia | E74: 25 | F74: 5 | G74: 10 | H74: 10
A75: 1 | B75: =PFP!C20 -> V3 | C75: =PFP!D20 -> Passagens Aéreas (ida e volta) | D75: =PFP!E20 -> un | E75: 5 | F75: 2 | G75: 1 | H75: 1 | I75: 1
A76: 1 | B76: =PFP!C21 -> M1 | C76: =PFP!D21 -> Relatório Parcial | D76: =PFP!E21 -> un | E76: 7 | F76: 2 | G76: 2 | H76: 2 | I76: 1
A77: 1 | B77: =PFP!C22 -> M2 | C77: =PFP!D22 -> Relatório Final | D77: =PFP!E22 -> un | E77: 3 | I77: 3
A78: 1 | B78: =PFP!C23 -> TOP | C78: =PFP!D23 -> Total Serviços Cartográficos | D78: =PFP!E23 -> un | E78: 0
A79: 1 | B79: =PFP!C24 -> GEO | C79: =PFP!D24 -> Total Serviços Geotécnicos | D79: =PFP!E24 -> un | E79: 0
A80: 1 | C80: Atualização EV PIS RC.500 a RC800 | F80: =SUBTOTAL(5,F66:F79) -> 0.25 | G80: =SUBTOTAL(5,G66:G79) -> 0.25 | H80: 0.25 | I80: 0.25 | J80: 0 | K80: 0 | L80: 0 | M80: 0 | N80: 0 | O80: 0 | P80: 0 | Q80: 0 | R80: 0 | S80: 0 | T80: 0 | U80: 0 | V80: 0 | W80: 0 | X80: 0 | Y80: 0 | Z80: 0 | AA80: 0 | AB80: 0 | AC80: 0 | AD80: 0 | AE80: 0 | AF80: 0 | AG80: 0 | AH80: 0 | AI80: 0 | AJ80: 0 | AK80: 0 | AL80: 0 | AM80: 0 | AN80: 0 | AO80: 0
A81: 2 | B81: =PFP!C8 -> P0 | C81: =PFP!D8 -> Engenheiro coordenador (P8061) | D81: =PFP!E8 -> mês | E81: 2.25 | J81: 0.5 | K81: 0.25 | L81: 0.25 | M81: 0.25 | N81: 0.25 | O81: 0.25 | P81: 0.25 | Q81: 0.25
A82: 2 | B82: =PFP!C9 -> P1 | C82: =PFP!D9 -> Engenheiro sênior (P8067) | D82: =PFP!E9 -> mês | E82: 6 | J82: 1.5 | K82: 1 | L82: 1 | M82: 0.5 | N82: 0.5 | O82: 0.5 | P82: 0.5 | Q82: 0.5
A83: 2 | B83: =PFP!C10 -> P2 | C83: =PFP!D10 -> Engenheiro pleno (P8066) | D83: =PFP!E10 -> mês | E83: 24 | J83: 6 | K83: 4 | L83: 4 | M83: 2 | N83: 2 | O83: 2 | P83: 2 | Q83: 2
A84: 2 | B84: =PFP!C11 -> P3 | C84: =PFP!D11 -> Engenheiro júnior (P8065) | D84: =PFP!E11 -> mês | E84: 12 | J84: 3 | K84: 2 | L84: 2 | M84: 1 | N84: 1 | O84: 1 | P84: 1 | Q84: 1
A85: 2 | B85: =PFP!C12 -> T1 | C85: =PFP!D12 -> Técnico de projetos/obra (P8147) | D85: =PFP!E12 -> mês | E85: 12 | J85: 3 | K85: 2 | L85: 2 | M85: 1 | N85: 1 | O85: 1 | P85: 1 | Q85: 1
A86: 2 | B86: =PFP!C13 -> D | C86: =PFP!D13 -> Desenhista (P9848) | D86: =PFP!E13 -> mês | E86: 10 | J86: 2 | K86: 1 | L86: 1 | M86: 1 | N86: 1 | O86: 1 | P86: 1 | Q86: 2
A87: 2 | B87: =PFP!C14 -> A1 | C87: =PFP!D14 -> Secretária (P8135) | D87: =PFP!E14 -> mês | E87: 4.5 | J87: 1 | K87: 0.5 | L87: 0.5 | M87: 0.5 | N87: 0.5 | O87: 0.5 | P87: 0.5 | Q87: 0.5
A88: 2 | B88: =PFP!C18 -> V1 | C88: =PFP!D18 -> Diárias | D88: =PFP!E18 -> dia | E88: 54 | J88: 4 | K88: 2 | L88: 20 | M88: 20 | N88: 2 | O88: 2 | P88: 2 | Q88: 2
A89: 2 | B89: =PFP!C19 -> V2 | C89: =PFP!D19 -> Pick-up Cab.dupla 2.8 4x4 Diesel | D89: =PFP!E19 -> dia | E89: 10 | L89: 5 | M89: 5
A90: 2 | B90: =PFP!C20 -> V3 | C90: =PFP!D20 -> Passagens Aéreas (ida e volta) | D90: =PFP!E20 -> un | E90: 9 | J90: 2 | K90: 1 | L90: 1 | M90: 1 | N90: 1 | O90: 1 | P90: 1 | Q90: 1
A91: 2 | B91: =PFP!C21 -> M1 | C91: =PFP!D21 -> Relatório Parcial | D91: =PFP!E21 -> un | E91: 15 | J91: 2 | K91: 2 | L91: 2 | M91: 2 | N91: 2 | O91: 2 | P91: 2 | Q91: 1
A92: 2 | B92: =PFP!C22 -> M2 | C92: =PFP!D22 -> Relatório Final | D92: =PFP!E22 -> un | E92: 3 | Q92: 3
A93: 2 | B93: =PFP!C23 -> TOP | C93: =PFP!D23 -> Total Serviços Cartográficos | D93: =PFP!E23 -> un | E93: 0
A94: 2 | B94: =PFP!C24 -> GEO | C94: =PFP!D24 -> Total Serviços Geotécnicos | D94: =PFP!E24 -> un | E94: 0
A95: 2 | C95: PB PIS RC.500 a RC800 | F95: =SUBTOTAL(5,F81:F94) -> 0 | G95: 0 | H95: 0 | I95: 0 | J95: 0.5 | K95: 0.25 | L95: 0.25 | M95: 0.25 | N95: 0.25 | O95: 0.25 | P95: 0.25 | Q95: 0.25 | R95: 0 | S95: 0 | T95: 0 | U95: 0 | V95: 0 | W95: 0 | X95: 0 | Y95: 0 | Z95: 0 | AA95: 0 | AB95: 0 | AC95: 0 | AD95: 0 | AE95: 0 | AF95: 0 | AG95: 0 | AH95: 0 | AI95: 0 | AJ95: 0 | AK95: 0 | AL95: 0 | AM95: 0 | AN95: 0 | AO95: 0
A96: 3 | B96: =PFP!C8 -> P0 | C96: =PFP!D8 -> Engenheiro coordenador (P8061) | D96: =PFP!E8 -> mês | E96: 4 | F96: 0.25 | G96: 0.25 | H96: 0.25 | I96: 0.25 | K96: 0.25 | L96: 0.25 | M96: 0.25 | N96: 0.25 | O96: 0.25 | P96: 0.25 | Q96: 0.25 | R96: 0.5 | S96: 0.5 | T96: 0.25
A97: 3 | B97: =PFP!C9 -> P1 | C97: =PFP!D9 -> Engenheiro sênior (P8067) | D97: =PFP!E9 -> mês | E97: 12 | F97: 1 | G97: 1 | H97: 1 | I97: 1 | K97: 1 | L97: 1 | M97: 1 | N97: 1 | O97: 1 | P97: 1 | Q97: 1 | R97: 1
A98: 3 | B98: =PFP!C10 -> P2 | C98: =PFP!D10 -> Engenheiro pleno (P8066) | D98: =PFP!E10 -> mês | E98: 12 | F98: 1 | G98: 1 | H98: 1 | I98: 1 | K98: 1 | L98: 1 | M98: 1 | N98: 1 | O98: 1 | P98: 1 | Q98: 1 | R98: 1
A99: 3 | B99: =PFP!C11 -> P3 | C99: =PFP!D11 -> Engenheiro júnior (P8065) | D99: =PFP!E11 -> mês | E99: 12 | F99: 1 | G99: 1 | H99: 1 | I99: 1 | K99: 1 | L99: 1 | M99: 1 | N99: 1 | O99: 1 | P99: 1 | Q99: 1 | R99: 1
A100: 3 | B100: =PFP!C12 -> T1 | C100: =PFP!D12 -> Técnico de projetos/obra (P8147) | D100: =PFP!E12 -> mês | E100: 37 | H100: 1 | I100: 1 | K100: 4 | L100: 5 | M100: 5 | N100: 5 | O100: 5 | P100: 5 | Q100: 2 | R100: 2 | S100: 1 | T100: 1
A101: 3 | B101: =PFP!C13 -> D | C101: =PFP!D13 -> Desenhista (P9848) | D101: =PFP!E13 -> mês | E101: 9 | F101: 1 | G101: 1 | H101: 1 | I101: 1 | Q101: 1 | R101: 1 | S101: 1 | T101: 2
A102: 3 | B102: =PFP!C14 -> A1 | C102: =PFP!D14 -> Secretária (P8135) | D102: =PFP!E14 -> mês | E102: 8 | F102: 0.5 | G102: 0.5 | H102: 0.5 | I102: 0.5 | K102: 0.5 | L102: 0.5 | M102: 0.5 | N102: 0.5 | O102: 0.5 | P102: 0.5 | Q102: 0.5 | R102: 1 | S102: 1 | T102: 0.5
A103: 3 | B103: =PFP!C18 -> V1 | C103: =PFP!D18 -> Diárias | D103: =PFP!E18 -> dia | E103: 364 | F103: 2 | G103: 2 | H103: 20 | I103: 20 | K103: 40 | L103: 40 | M103: 40 | N103: 40 | O103: 40 | P103: 40 | Q103: 20 | R103: 20 | S103: 20 | T103: 20
A104: 3 | B104: =PFP!C19 -> V2 | C104: =PFP!D19 -> Pick-up Cab.dupla 2.8 4x4 Diesel | D104: =PFP!E19 -> dia | E104: 90 | H104: 5 | I104: 5 | K104: 10 | L104: 10 | M104: 10 | N104: 10 | O104: 10 | P104: 10 | Q104: 5 | R104: 5 | S104: 5 | T104: 5
A105: 3 | B105: =PFP!C20 -> V3 | C105: =PFP!D20 -> Passagens Aéreas (ida e volta) | D105: =PFP!E20 -> un | E105: 14 | F105: 1 | G105: 1 | H105: 1 | I105: 1 | K105: 1 | L105: 1 | M105: 1 | N105: 1 | O105: 1 | P105: 1 | Q105: 1 | R105: 1 | S105: 1 | T105: 1
A106: 3 | B106: =PFP!C21 -> M1 | C106: =PFP!D21 -> Relatório Parcial | D106: =PFP!E21 -> un | E106: 29 | F106: 1 | G106: 1 | H106: 1 | K106: 2 | O106: 4 | P106: 4 | Q106: 4 | R106: 4 | S106: 4 | T106: 4
A107: 3 | B107: =PFP!C22 -> M2 | C107: =PFP!D22 -> Relatório Final | D107: =PFP!E22 -> un | E107: 6 | I107: 1 | O107: 1 | P107: 1 | T107: 3
A108: 3 | B108: =PFP!C23 -> TOP | C108: =PFP!D23 -> Total Serviços Cartográficos | D108: =PFP!E23 -> un | E108: 1 | K108: 0.2 | L108: 0.2 | M108: 0.2 | N108: 0.2 | O108: 0.2
A109: 3 | B109: =PFP!C24 -> GEO | C109: =PFP!D24 -> Total Serviços Geotécnicos | D109: =PFP!E24 -> un | E109: 1 | L109: 0.2 | M109: 0.2 | N109: 0.2 | O109: 0.2 | P109: 0.2
A110: 3 | C110: Estudos Básicos | F110: =SUBTOTAL(5,F96:F109) -> 0.25 | G110: 0.25 | H110: 0.25 | I110: 0.25 | J110: 0 | K110: 0.2 | L110: 0.2 | M110: 0.2 | N110: 0.2 | O110: 0.2 | P110: 0.2 | Q110: 0.25 | R110: 0.5 | S110: 0.5 | T110: 0.25 | U110: 0 | V110: 0 | W110: 0 | X110: 0 | Y110: 0 | Z110: 0 | AA110: 0 | AB110: 0 | AC110: 0 | AD110: 0 | AE110: 0 | AF110: 0 | AG110: 0 | AH110: 0 | AI110: 0 | AJ110: 0 | AK110: 0 | AL110: 0 | AM110: 0 | AN110: 0 | AO110: 0
A111: 5 | B111: =PFP!C8 -> P0 | C111: =PFP!D8 -> Engenheiro coordenador (P8061) | D111: =PFP!E8 -> mês | E111: =SUM(F111:AO111) -> 2.25 | T111: 0.25 | U111: 0.5 | V111: 0.5 | W111: 0.5 | X111: 0.25 | Y111: 0.25
A112: 5 | B112: =PFP!C9 -> P1 | C112: =PFP!D9 -> Engenheiro sênior (P8067) | D112: =PFP!E9 -> mês | E112: 7.5 | T112: 0.5 | U112: 2.5 | V112: 2.5 | W112: 1 | X112: 0.5 | Y112: 0.5
A113: 5 | B113: =PFP!C10 -> P2 | C113: =PFP!D10 -> Engenheiro pleno (P8066) | D113: =PFP!E10 -> mês | E113: 30 | T113: 2 | U113: 10 | V113: 10 | W113: 4 | X113: 2 | Y113: 2
A114: 5 | B114: =PFP!C11 -> P3 | C114: =PFP!D11 -> Engenheiro júnior (P8065) | D114: =PFP!E11 -> mês | E114: 15 | T114: 1 | U114: 5 | V114: 5 | W114: 2 | X114: 1 | Y114: 1
A115: 5 | B115: =PFP!C12 -> T1 | C115: =PFP!D12 -> Técnico de projetos/obra (P8147) | D115: =PFP!E12 -> mês | E115: 15 | T115: 1 | U115: 5 | V115: 5 | W115: 2 | X115: 1 | Y115: 1
A116: 5 | B116: =PFP!C13 -> D | C116: =PFP!D13 -> Desenhista (P9848) | D116: =PFP!E13 -> mês | E116: 9 | T116: 1 | U116: 2 | V116: 2 | W116: 1 | X116: 1 | Y116: 2
A117: 5 | B117: =PFP!C14 -> A1 | C117: =PFP!D14 -> Secretária (P8135) | D117: =PFP!E14 -> mês | E117: 4.5 | T117: 0.5 | U117: 1 | V117: 1 | W117: 1 | X117: 0.5 | Y117: 0.5
A118: 5 | B118: =PFP!C18 -> V1 | C118: =PFP!D18 -> Diárias | D118: =PFP!E18 -> dia | E118: 84 | T118: 2 | U118: 20 | V118: 20 | W118: 20 | X118: 20 | Y118: 2
A119: 5 | B119: =PFP!C19 -> V2 | C119: =PFP!D19 -> Pick-up Cab.dupla 2.8 4x4 Diesel | D119: =PFP!E19 -> dia | E119: 20 | U119: 5 | V119: 5 | W119: 5 | X119: 5
A120: 5 | B120: =PFP!C20 -> V3 | C120: =PFP!D20 -> Passagens Aéreas (ida e volta) | D120: =PFP!E20 -> un | E120: 9 | T120: 1 | U120: 1 | V120: 2 | W120: 2 | X120: 2 | Y120: 1
A121: 5 | B121: =PFP!C21 -> M1 | C121: =PFP!D21 -> Relatório Parcial | D121: =PFP!E21 -> un | E121: 11 | T121: 2 | U121: 2 | V121: 2 | W121: 2 | X121: 2 | Y121: 1
A122: 5 | B122: =PFP!C22 -> M2 | C122: =PFP!D22 -> Relatório Final | D122: =PFP!E22 -> un | E122: 3 | Y122: 3
A123: 5 | B123: =PFP!C23 -> TOP | C123: =PFP!D23 -> Total Serviços Cartográficos | D123: =PFP!E23 -> un | E123: 0
A124: 5 | B124: =PFP!C24 -> GEO | C124: =PFP!D24 -> Total Serviços Geotécnicos | D124: =PFP!E24 -> un | E124: 0
A125: 5 | C125: CSB Trecho 1.1 | F125: =SUBTOTAL(5,F111:F124) -> 0 | G125: 0 | H125: 0 | I125: 0 | J125: 0 | K125: 0 | L125: 0 | M125: 0 | N125: 0 | O125: 0 | P125: 0 | Q125: 0 | R125: 0 | S125: 0 | T125: 0.25 | U125: 0.5 | V125: 0.5 | W125: 0.5 | X125: 0.25 | Y125: 0.25 | Z125: 0 | AA125: 0 | AB125: 0 | AC125: 0 | AD125: 0 | AE125: 0 | AF125: 0 | AG125: 0 | AH125: 0 | AI125: 0 | AJ125: 0 | AK125: 0 | AL125: 0 | AM125: 0 | AN125: 0 | AO125: 0
A126: 6 | B126: =PFP!C8 -> P0 | C126: =PFP!D8 -> Engenheiro coordenador (P8061) | D126: =PFP!E8 -> mês | E126: 2.25 | X126: 0.25 | Y126: 0.25 | Z126: 0.5 | AA126: 0.5 | AB126: 0.5 | AC126: 0.25
A127: 6 | B127: =PFP!C9 -> P1 | C127: =PFP!D9 -> Engenheiro sênior (P8067) | D127: =PFP!E9 -> mês | E127: 7.5 | X127: 0.5 | Y127: 2.5 | Z127: 2.5 | AA127: 1 | AB127: 0.5 | AC127: 0.5
A128: 6 | B128: =PFP!C10 -> P2 | C128: =PFP!D10 -> Engenheiro pleno (P8066) | D128: =PFP!E10 -> mês | E128: 30 | X128: 2 | Y128: 10 | Z128: 10 | AA128: 4 | AB128: 2 | AC128: 2
A129: 6 | B129: =PFP!C11 -> P3 | C129: =PFP!D11 -> Engenheiro júnior (P8065) | D129: =PFP!E11 -> mês | E129: 15 | X129: 1 | Y129: 5 | Z129: 5 | AA129: 2 | AB129: 1 | AC129: 1
A130: 6 | B130: =PFP!C12 -> T1 | C130: =PFP!D12 -> Técnico de projetos/obra (P8147) | D130: =PFP!E12 -> mês | E130: 15 | X130: 1 | Y130: 5 | Z130: 5 | AA130: 2 | AB130: 1 | AC130: 1
A131: 6 | B131: =PFP!C13 -> D | C131: =PFP!D13 -> Desenhista (P9848) | D131: =PFP!E13 -> mês | E131: 9 | X131: 1 | Y131: 2 | Z131: 2 | AA131: 1 | AB131: 1 | AC131: 2
A132: 6 | B132: =PFP!C14 -> A1 | C132: =PFP!D14 -> Secretária (P8135) | D132: =PFP!E14 -> mês | E132: 4.5 | X132: 0.5 | Y132: 0.5 | Z132: 1 | AA132: 1 | AB132: 1 | AC132: 0.5
A133: 6 | B133: =PFP!C18 -> V1 | C133: =PFP!D18 -> Diárias | D133: =PFP!E18 -> dia | E133: 84 | X133: 2 | Y133: 20 | Z133: 20 | AA133: 20 | AB133: 20 | AC133: 2
A134: 6 | B134: =PFP!C19 -> V2 | C134: =PFP!D19 -> Pick-up Cab.dupla 2.8 4x4 Diesel | D134: =PFP!E19 -> dia | E134: 20 | Y134: 5 | Z134: 5 | AA134: 5 | AB134: 5
A135: 6 | B135: =PFP!C20 -> V3 | C135: =PFP!D20 -> Passagens Aéreas (ida e volta) | D135: =PFP!E20 -> un | E135: 9 | X135: 1 | Y135: 1 | Z135: 2 | AA135: 2 | AB135: 2 | AC135: 1
A136: 6 | B136: =PFP!C21 -> M1 | C136: =PFP!D21 -> Relatório Parcial | D136: =PFP!E21 -> un | E136: 11 | X136: 2 | Y136: 2 | Z136: 2 | AA136: 2 | AB136: 2 | AC136: 1
A137: 6 | B137: =PFP!C22 -> M2 | C137: =PFP!D22 -> Relatório Final | D137: =PFP!E22 -> un | E137: 3 | AC137: 3
A138: 6 | B138: =PFP!C23 -> TOP | C138: =PFP!D23 -> Total Serviços Cartográficos | D138: =PFP!E23 -> un | E138: 0
A139: 6 | B139: =PFP!C24 -> GEO | C139: =PFP!D24 -> Total Serviços Geotécnicos | D139: =PFP!E24 -> un | E139: 0
A140: 6 | C140: CSB Trecho 1.2 | F140: =SUBTOTAL(5,F126:F139) -> 0 | G140: 0 | H140: 0 | I140: 0 | J140: 0 | K140: 0 | L140: 0 | M140: 0 | N140: 0 | O140: 0 | P140: 0 | Q140: 0 | R140: 0 | S140: 0 | T140: 0 | U140: 0 | V140: 0 | W140: 0 | X140: 0.25 | Y140: 0.25 | Z140: 0.5 | AA140: 0.5 | AB140: 0.5 | AC140: 0.25 | AD140: 0 | AE140: 0 | AF140: 0 | AG140: 0 | AH140: 0 | AI140: 0 | AJ140: 0 | AK140: 0 | AL140: 0 | AM140: 0 | AN140: 0 | AO140: 0
A141: 7 | B141: =PFP!C8 -> P0 | C141: =PFP!D8 -> Engenheiro coordenador (P8061) | D141: =PFP!E8 -> mês | E141: 1.5 | AC141: 0.25 | AD141: 0.5 | AE141: 0.5 | AF141: 0.25
A142: 7 | B142: =PFP!C9 -> P1 | C142: =PFP!D9 -> Engenheiro sênior (P8067) | D142: =PFP!E9 -> mês | E142: 6.5 | AC142: 0.5 | AD142: 2.5 | AE142: 2.5 | AF142: 1
A143: 7 | B143: =PFP!C10 -> P2 | C143: =PFP!D10 -> Engenheiro pleno (P8066) | D143: =PFP!E10 -> mês | E143: 24 | AC143: 2 | AD143: 10 | AE143: 10 | AF143: 2
A144: 7 | B144: =PFP!C11 -> P3 | C144: =PFP!D11 -> Engenheiro júnior (P8065) | D144: =PFP!E11 -> mês | E144: 12 | AC144: 1 | AD144: 5 | AE144: 5 | AF144: 1
A145: 7 | B145: =PFP!C12 -> T1 | C145: =PFP!D12 -> Técnico de projetos/obra (P8147) | D145: =PFP!E12 -> mês | E145: 12 | AC145: 1 | AD145: 5 | AE145: 5 | AF145: 1
A146: 7 | B146: =PFP!C13 -> D | C146: =PFP!D13 -> Desenhista (P9848) | D146: =PFP!E13 -> mês | E146: 7 | AC146: 1 | AD146: 2 | AE146: 2 | AF146: 2
A147: 7 | B147: =PFP!C14 -> A1 | C147: =PFP!D14 -> Secretária (P8135) | D147: =PFP!E14 -> mês | E147: 3 | AC147: 0.5 | AD147: 1 | AE147: 1 | AF147: 0.5
A148: 7 | B148: =PFP!C18 -> V1 | C148: =PFP!D18 -> Diárias | D148: =PFP!E18 -> dia | E148: 64 | AC148: 20 | AD148: 20 | AE148: 20 | AF148: 4
A149: 7 | B149: =PFP!C19 -> V2 | C149: =PFP!D19 -> Pick-up Cab.dupla 2.8 4x4 Diesel | D149: =PFP!E19 -> dia | E149: 15 | AC149: 5 | AD149: 5 | AE149: 5
A150: 7 | B150: =PFP!C20 -> V3 | C150: =PFP!D20 -> Passagens Aéreas (ida e volta) | D150: =PFP!E20 -> un | E150: 7 | AC150: 1 | AD150: 2 | AE150: 2 | AF150: 2
A151: 7 | B151: =PFP!C21 -> M1 | C151: =PFP!D21 -> Relatório Parcial | D151: =PFP!E21 -> un | E151: 5 | AC151: 2. | AD151: 2 | AE151: 2 | AF151: 1
A152: 7 | B152: =PFP!C22 -> M2 | C152: =PFP!D22 -> Relatório Final | D152: =PFP!E22 -> un | E152: 3 | AF152: 3
A153: 7 | B153: =PFP!C23 -> TOP | C153: =PFP!D23 -> Total Serviços Cartográficos | D153: =PFP!E23 -> un | E153: 0
A154: 7 | B154: =PFP!C24 -> GEO | C154: =PFP!D24 -> Total Serviços Geotécnicos | D154: =PFP!E24 -> un | E154: 0
A155: 7 | C155: CSB Trecho 2 | F155: =SUBTOTAL(5,F141:F154) -> 0 | G155: 0 | H155: 0 | I155: 0 | J155: 0 | K155: 0 | L155: 0 | M155: 0 | N155: 0 | O155: 0 | P155: 0 | Q155: 0 | R155: 0 | S155: 0 | T155: 0 | U155: 0 | V155: 0 | W155: 0 | X155: 0 | Y155: 0 | Z155: 0 | AA155: 0 | AB155: 0 | AC155: 0.25 | AD155: 0.5 | AE155: 0.5 | AF155: 0.25 | AG155: 0 | AH155: 0 | AI155: 0 | AJ155: 0 | AK155: 0 | AL155: 0 | AM155: 0 | AN155: 0 | AO155: 0
A156: 8 | B156: =PFP!C8 -> P0 | C156: =PFP!D8 -> Engenheiro coordenador (P8061) | D156: =PFP!E8 -> mês | E156: =SUM(F156:AO156) -> 1.5 | AF156: 0.25 | AG156: 0.5 | AH156: 0.5 | AI156: 0.25
A157: 8 | B157: =PFP!C9 -> P1 | C157: =PFP!D9 -> Engenheiro sênior (P8067) | D157: =PFP!E9 -> mês | E157: 6.5 | AF157: 0.5 | AG157: 2.5 | AH157: 2.5 | AI157: 1
A158: 8 | B158: =PFP!C10 -> P2 | C158: =PFP!D10 -> Engenheiro pleno (P8066) | D158: =PFP!E10 -> mês | E158: 24 | AF158: 2 | AG158: 10 | AH158: 10 | AI158: 2
A159: 8 | B159: =PFP!C11 -> P3 | C159: =PFP!D11 -> Engenheiro júnior (P8065) | D159: =PFP!E11 -> mês | E159: 12 | AF159: 1 | AG159: 5 | AH159: 5 | AI159: 1
A160: 8 | B160: =PFP!C12 -> T1 | C160: =PFP!D12 -> Técnico de projetos/obra (P8147) | D160: =PFP!E12 -> mês | E160: 12 | AF160: 1 | AG160: 5 | AH160: 5 | AI160: 1
A161: 8 | B161: =PFP!C13 -> D | C161: =PFP!D13 -> Desenhista (P9848) | D161: =PFP!E13 -> mês | E161: 7 | AF161: 1 | AG161: 2 | AH161: 2 | AI161: 2
A162: 8 | B162: =PFP!C14 -> A1 | C162: =PFP!D14 -> Secretária (P8135) | D162: =PFP!E14 -> mês | E162: 3 | AF162: 0.5 | AG162: 1 | AH162: 1 | AI162: 0.5
A163: 8 | B163: =PFP!C18 -> V1 | C163: =PFP!D18 -> Diárias | D163: =PFP!E18 -> dia | E163: 64 | AF163: 20 | AG163: 20 | AH163: 20 | AI163: 4
A164: 8 | B164: =PFP!C19 -> V2 | C164: =PFP!D19 -> Pick-up Cab.dupla 2.8 4x4 Diesel | D164: =PFP!E19 -> dia | E164: 15 | AF164: 5 | AG164: 5 | AH164: 5
A165: 8 | B165: =PFP!C20 -> V3 | C165: =PFP!D20 -> Passagens Aéreas (ida e volta) | D165: =PFP!E20 -> un | E165: 7 | AF165: 1 | AG165: 2 | AH165: 2 | AI165: 2
A166: 8 | B166: =PFP!C21 -> M1 | C166: =PFP!D21 -> Relatório Parcial | D166: =PFP!E21 -> un | E166: 5 | AF166: 2. | AG166: 2 | AH166: 2 | AI166: 1
A167: 8 | B167: =PFP!C22 -> M2 | C167: =PFP!D22 -> Relatório Final | D167: =PFP!E22 -> un | E167: 3 | AI167: 3
A168: 8 | B168: =PFP!C23 -> TOP | C168: =PFP!D23 -> Total Serviços Cartográficos | D168: =PFP!E23 -> un | E168: 0
A169: 8 | B169: =PFP!C24 -> GEO | C169: =PFP!D24 -> Total Serviços Geotécnicos | D169: =PFP!E24 -> un | E169: 0
A170: 8 | C170: CSB Trecho 3 | F170: =SUBTOTAL(5,F156:F169) -> 0 | G170: 0 | H170: 0 | I170: 0 | J170: 0 | K170: 0 | L170: 0 | M170: 0 | N170: 0 | O170: 0 | P170: 0 | Q170: 0 | R170: 0 | S170: 0 | T170: 0 | U170: 0 | V170: 0 | W170: 0 | X170: 0 | Y170: 0 | Z170: 0 | AA170: 0 | AB170: 0 | AC170: 0 | AD170: 0 | AE170: 0 | AF170: 0.25 | AG170: 0.5 | AH170: 0.5 | AI170: 0.25 | AJ170: 0 | AK170: 0 | AL170: 0 | AM170: 0 | AN170: 0 | AO170: 0
A171: 9 | B171: =PFP!C8 -> P0 | C171: =PFP!D8 -> Engenheiro coordenador (P8061) | D171: =PFP!E8 -> mês | E171: 1.5 | AI171: 0.25 | AJ171: 0.5 | AK171: 0.5 | AL171: 0.25
A172: 9 | B172: =PFP!C9 -> P1 | C172: =PFP!D9 -> Engenheiro sênior (P8067) | D172: =PFP!E9 -> mês | E172: 6.5 | AI172: 0.5 | AJ172: 2.5 | AK172: 2.5 | AL172: 1
A173: 9 | B173: =PFP!C10 -> P2 | C173: =PFP!D10 -> Engenheiro pleno (P8066) | D173: =PFP!E10 -> mês | E173: 24 | AI173: 2 | AJ173: 10 | AK173: 10 | AL173: 2
A174: 9 | B174: =PFP!C11 -> P3 | C174: =PFP!D11 -> Engenheiro júnior (P8065) | D174: =PFP!E11 -> mês | E174: 12 | AI174: 1 | AJ174: 5 | AK174: 5 | AL174: 1
A175: 9 | B175: =PFP!C12 -> T1 | C175: =PFP!D12 -> Técnico de projetos/obra (P8147) | D175: =PFP!E12 -> mês | E175: 12 | AI175: 1 | AJ175: 5 | AK175: 5 | AL175: 1
A176: 9 | B176: =PFP!C13 -> D | C176: =PFP!D13 -> Desenhista (P9848) | D176: =PFP!E13 -> mês | E176: 7 | AI176: 1 | AJ176: 2 | AK176: 2 | AL176: 2
A177: 9 | B177: =PFP!C14 -> A1 | C177: =PFP!D14 -> Secretária (P8135) | D177: =PFP!E14 -> mês | E177: 3 | AI177: 0.5 | AJ177: 1 | AK177: 1 | AL177: 0.5
A178: 9 | B178: =PFP!C18 -> V1 | C178: =PFP!D18 -> Diárias | D178: =PFP!E18 -> dia | E178: 28 | AI178: 4 | AJ178: 10 | AK178: 10 | AL178: 4
A179: 9 | B179: =PFP!C19 -> V2 | C179: =PFP!D19 -> Pick-up Cab.dupla 2.8 4x4 Diesel | D179: =PFP!E19 -> dia | E179: 15 | AI179: 5 | AJ179: 5 | AK179: 5
A180: 9 | B180: =PFP!C20 -> V3 | C180: =PFP!D20 -> Passagens Aéreas (ida e volta) | D180: =PFP!E20 -> un | E180: 7 | AI180: 1 | AJ180: 2 | AK180: 2 | AL180: 2
A181: 9 | B181: =PFP!C21 -> M1 | C181: =PFP!D21 -> Relatório Parcial | D181: =PFP!E21 -> un | E181: 5 | AI181: 2. | AJ181: 2 | AK181: 2 | AL181: 1
A182: 9 | B182: =PFP!C22 -> M2 | C182: =PFP!D22 -> Relatório Final | D182: =PFP!E22 -> un | E182: 3 | AL182: 3
A183: 9 | B183: =PFP!C23 -> TOP | C183: =PFP!D23 -> Total Serviços Cartográficos | D183: =PFP!E23 -> un | E183: 0
A184: 9 | B184: =PFP!C24 -> GEO | C184: =PFP!D24 -> Total Serviços Geotécnicos | D184: =PFP!E24 -> un | E184: 0
A185: 9 | C185: CSB Trecho 4 | F185: =SUBTOTAL(5,F171:F184) -> 0 | G185: 0 | H185: 0 | I185: 0 | J185: 0 | K185: 0 | L185: 0 | M185: 0 | N185: 0 | O185: 0 | P185: 0 | Q185: 0 | R185: 0 | S185: 0 | T185: 0 | U185: 0 | V185: 0 | W185: 0 | X185: 0 | Y185: 0 | Z185: 0 | AA185: 0 | AB185: 0 | AC185: 0 | AD185: 0 | AE185: 0 | AF185: 0 | AG185: 0 | AH185: 0 | AI185: 0.25 | AJ185: 0.5 | AK185: 0.5 | AL185: 0.25 | AM185: 0 | AN185: 0 | AO185: 0
A186: 10 | B186: =PFP!C8 -> P0 | C186: =PFP!D8 -> Engenheiro coordenador (P8061) | D186: =PFP!E8 -> mês | E186: 1.75 | AL186: 0.25 | AM186: 0.5 | AN186: 0.5 | AO186: 0.5
A187: 10 | B187: =PFP!C9 -> P1 | C187: =PFP!D9 -> Engenheiro sênior (P8067) | D187: =PFP!E9 -> mês | E187: 6.5 | AL187: 0.5 | AM187: 2.5 | AN187: 2.5 | AO187: 1
A188: 10 | B188: =PFP!C10 -> P2 | C188: =PFP!D10 -> Engenheiro pleno (P8066) | D188: =PFP!E10 -> mês | E188: 26 | AL188: 2 | AM188: 10 | AN188: 10 | AO188: 4
A189: 10 | B189: =PFP!C11 -> P3 | C189: =PFP!D11 -> Engenheiro júnior (P8065) | D189: =PFP!E11 -> mês | E189: 13 | AL189: 1 | AM189: 5 | AN189: 5 | AO189: 2
A190: 10 | B190: =PFP!C12 -> T1 | C190: =PFP!D12 -> Técnico de projetos/obra (P8147) | D190: =PFP!E12 -> mês | E190: 13 | AL190: 1 | AM190: 5 | AN190: 5 | AO190: 2
A191: 10 | B191: =PFP!C13 -> D | C191: =PFP!D13 -> Desenhista (P9848) | D191: =PFP!E13 -> mês | E191: 7 | AL191: 1 | AM191: 1 | AN191: 2 | AO191: 3
A192: 10 | B192: =PFP!C14 -> A1 | C192: =PFP!D14 -> Secretária (P8135) | D192: =PFP!E14 -> mês | E192: 3.5 | AL192: 0.5 | AM192: 1 | AN192: 1 | AO192: 1
A193: 10 | B193: =PFP!C18 -> V1 | C193: =PFP!D18 -> Diárias | D193: =PFP!E18 -> dia | E193: 64 | AL193: 20 | AM193: 20 | AN193: 20 | AO193: 4
A194: 10 | B194: =PFP!C19 -> V2 | C194: =PFP!D19 -> Pick-up Cab.dupla 2.8 4x4 Diesel | D194: =PFP!E19 -> dia | E194: 15 | AL194: 5 | AM194: 5 | AN194: 5
A195: 10 | B195: =PFP!C20 -> V3 | C195: =PFP!D20 -> Passagens Aéreas (ida e volta) | D195: =PFP!E20 -> un | E195: 7 | AL195: 1 | AM195: 2 | AN195: 2 | AO195: 2
A196: 10 | B196: =PFP!C21 -> M1 | C196: =PFP!D21 -> Relatório Parcial | D196: =PFP!E21 -> un | E196: 5 | AL196: 2. | AM196: 2 | AN196: 2 | AO196: 1
A197: 10 | B197: =PFP!C22 -> M2 | C197: =PFP!D22 -> Relatório Final | D197: =PFP!E22 -> un | E197: =SUM(F197:AO197) -> 3 | AO197: 3
A198: 10 | B198: =PFP!C23 -> TOP | C198: =PFP!D23 -> Total Serviços Cartográficos | D198: =PFP!E23 -> un | E198: 0
A199: 10 | B199: =PFP!C24 -> GEO | C199: =PFP!D24 -> Total Serviços Geotécnicos | D199: =PFP!E24 -> un | E199: 0
A200: 10 | C200: CSB Trecho 5 | F200: =SUBTOTAL(5,F186:F199) -> 0 | G200: 0 | H200: 0 | I200: 0 | J200: 0 | K200: 0 | L200: 0 | M200: 0 | N200: 0 | O200: 0 | P200: 0 | Q200: 0 | R200: 0 | S200: 0 | T200: 0 | U200: 0 | V200: 0 | W200: 0 | X200: 0 | Y200: 0 | Z200: 0 | AA200: 0 | AB200: 0 | AC200: 0 | AD200: 0 | AE200: 0 | AF200: 0 | AG200: 0 | AH200: 0 | AI200: 0 | AJ200: 0 | AK200: 0 | AL200: 0.25 | AM200: 0.5 | AN200: 0.5 | AO200: 0.5
A201: Total | C201: Balanço de Insumos | F201: =SUBTOTAL(2,F66:F199) -> 19 | G201: 20 | H201: 22 | I201: 22 | J201: 10 | K201: 21 | L201: 22 | M201: 22 | N201: 21 | O201: 23 | P201: 22 | Q201: 22 | R201: 11 | S201: 8 | T201: 19 | U201: 11 | V201: 11 | W201: 11 | X201: 21 | Y201: 22 | Z201: 11 | AA201: 11 | AB201: 11 | AC201: 21 | AD201: 11 | AE201: 11 | AF201: 21 | AG201: 11 | AH201: 11 | AI201: 21 | AJ201: 11 | AK201: 11 | AL201: 21 | AM201: 11 | AN201: 11 | AO201: 11
